{"text_format":"3","workbook":"xlsx","n_sheets":7,"sheets":["Workpackages","Sheet1","Projects","Attributes","Users","Types","Default"],"not_rendered":{"images":2,"macros":1,"defined_names":68},"read":"whole","date_system":"1900"}

{"sheet":"Workpackages","index":0,"n_rows":177,"n_cols":8,"rows_kept":177}
["Updatestatus","Lock Version","ID","Parent","Subject","Comments","Priority of requirement","Type of Requirement"]
[null,4,1966,"","General Statements","","Must have","Non functional"]
[null,3,2090,"1966","    Solution Description","","Must have","Non functional"]
[null,0,2091,"2090","        Architecture","Please describe the architecture of your solution in a separate document (maximum 5 pages) and set up an overview of each component and its functionalities as well as the storage solution.","Must have","Non functional"]
[null,0,2092,"2090","        Concept and Implementation Procedure","Please describe in a separate document (max 5 pages) your concept and implementation procedure including project management methods and software development methods for the solution. Is a development guideline (naming conventions, abbreviations, formatting and design rules and programming rules) offered for the solution?","Must have","Non functional"]
[null,1,1967,"1966","    Project Employees","Statements about the company profile in bullet point form in the section \"Comments/ Further Annotations.\"","Must have","Non functional"]
[null,0,1968,"1967","        Project Manager","Can you provide a Project Manager with experience (minimum 3 years) in respective Projects ?","Must have","Non functional"]
[null,0,1969,"1967","        Technical Architect","Can you provide a Technical Architect with experience (minimum 3 years) in respective  Projects ?","Expected","Non functional"]
[null,0,1970,"1967","        Developer","Can you provide a Software Developer with experience (minimum 3 years) in respectiveProjects ?","Expected","Non functional"]
[null,0,1971,"1967","        Business Analyst","Can you provide a Business Analyst with experience (minimum 3 years) in respective Projects ?","Expected","Non functional"]
[null,0,1972,"1967","        UX Designer","Can you provide a UX Designer with experience (minimum 3 years) in respectiveProjects ?","Expected","Non functional"]
[null,0,1973,"1967","        Database Administrator","Can you provide a Database Administrator with experience (minimum 3 years) in respective Projects ?","Expected","Non functional"]
[null,0,1974,"1967","        English speaking Employees ","Does the project team consist of English speaking employees that you would be using for the offered solution? (background: project language is in English) ","Expected","Non functional"]
[null,0,1975,"1967","        Certificates","Do the team members in the project team have relevant certificates for the tools used in the proposed solution ?","Expected","Non functional"]
[null,4,1976,"1966","Support, Documentation and Knowledge transfer","Support comprises all services which are essential for the establishment of the solution. ","Must have","Non functional"]
[null,6,2101,"1976","    Learning and Documentation Material","one of below mentioned channels at least","Must have","Non functional"]
[null,0,2102,"2101","        Tutorials","Are tutorials for the solution and associated tools freely accessible online?","Expected","Non functional"]
[null,0,2103,"2101","        Webinars","Are webinars of the solution and associated tools available online?","Expected","Non functional"]
[null,0,2104,"2101","        Online Trainings","Are online trainings of the solution and associated tools available online?","Expected","Non functional"]
[null,0,2105,"2101","        Blogs","Are blog trainings of the solution and associated tools available online?","Expected","Non functional"]
[null,0,2106,"2101","        Progress Documentation","Does the solution offer an open source wiki for ongoing documentation and planning ?","Expected","Non functional"]
[null,1,9641,"2101","Solution Documentation","Does the solution provide a comprehensive documentation?","Must have","Non functional"]
[null,0,9642,"9641","Solution Documentation for Developers","","Must have","Non functional"]
[null,0,9643,"9641","Solution Documentation for Operations","","Must have","Non functional"]
[null,0,9644,"9641","Solution Documentation for End Users","","Must have","Non functional"]
[null,1,1977,"1976","        Training Offerings for Project Employees ","Training for the employees involved in the implementation project.","Must have","Non functional"]
[null,3,1978,"1977","            Online training for project team members","Do you provide online training ?","Must have","Non functional"]
[null,2,1979,"1977","            Onsite training for project team members","Do you provide onsite training ?","Must have","Non functional"]
[null,1,1980,"1976","        Training Offerings for Administrators","Training for administrators to operate the solution.","Must have","Non functional"]
[null,1,1981,"1980","            Online training for administrators","Do you provide online training ?","Must have","Non functional"]
[null,1,1982,"1980","            Onsite training for administrators","Do you provide onsite training ?","Must have","Non functional"]
[null,1,1983,"1976","        Training Offerings for Users","Training for users to maximize effectivity of usefulness.","Must have","Non functional"]
[null,1,1984,"1983","            Online training for users","Do you provide online training ?","Expected","Non functional"]
[null,1,1985,"1983","            Onsite training for users","Do you provide onsite training ?","Must have","Non functional"]
[null,1,1986,"1976","Can the support be provided in English?","","Must have","Non functional"]
[null,0,9645,"1966","Source Code Hand Over","Will the source code be handed over to the central repository of the Government of Rwanda?","Must have","Non functional"]
[null,0,9646,"1966","Source code build","Can the solution be build from the central repository of Government of Rwanda","Expected","Non functional"]
[null,5,1989,"","Support of non-functional Requirements","","Must have","Non functional"]
[null,3,2007,"1989","        Testability","The effort required to check changes made to the system.","Must have","Non functional"]
[null,0,2008,"2007","            Unit Test","Are unit tests supported?\nIs the business logic code designed to support unit testing? Are unit test frameworks being used or supported?","Expected","Non functional"]
[null,0,2009,"2007","            Regression test","Are regression tests supported? When importing software changes, it should be ensured that modules that have not been changed continue to function as before. Defined regression test cases should be repeatable.","Must have","Non functional"]
[null,0,2010,"2007","            Integration tests","Are integration test supported ?","Must have","Non functional"]
[null,7,2040,"1989","    Reusability","","Must have","Non functional"]
[null,0,9647,"2040","Does the solution support microservices?","","Expected","Non functional"]
[null,0,9648,"2040","Does the solution support service oriented architecture?","","Expected","Non functional"]
[null,7,2014,"1989","    Scalability (of overall solution including hardware, software etc. )","","Must have","Non functional"]
[null,3,2011,"2014","        Expandability","Properties that enable the following:\n\n- Connection of new data sources\n- Easy extension of all DWH layers to realize new data sources or adaptations of existing data sources up to the data consumer\n","Must have","Non functional"]
[null,3,2012,"2011","            Connection new components and/or data sources","Can the solution be expanded by connecting to new components and/or data sources ?","Must have","Non functional"]
[null,0,2013,"2011","            Modularity","The solution should have a modular setup.","Must have","Non functional"]
[null,0,2015,"2014","        Horizontal Scalability","Horizontal (computer node linking) system scalability should be supported.","Must have","Non functional"]
[null,1,2016,"2014","        Vertical Scalability","Vertical (local resource incensement of computer nodes) scalability of the system should be supported. What kind of increasing quantities (data, users, ...) the system will be able to handle in the future and the system's behavior regarding resource expenditures.","Must have","Non functional"]
[null,1,1993,"1989","    Reliability","","Must have","Non functional"]
[null,1,1994,"1993","        Business Continuity Management (BCM)","","Must have","Non functional"]
[null,1,1995,"1994","            Recoverability","System should support the functionality to reproduce a defined performance level of the system after a system error occurs(e.g. system crash or hardware failure).","Must have","Non functional"]
[null,0,1996,"1994","            Internal Backup","System should support an established backup strategies e.g. snapshots, full backups, incremental backups for the system itself .","Expected","Non functional"]
[null,0,1997,"1994","            External Backup","Are external backups and recovery functionalities offered ? (Hot & cold backup to the datacenter)","Must have","Non functional"]
[null,1,1998,"1993","        High Availability","Is the system able to operate in a high availability modus/environment e.g. via data redundancy/ replicas?","Nice to have","Non functional"]
[null,1,1999,"1989","    Efficiency","","Must have","Non functional"]
[null,0,2000,"1999","        Scheduling Software","Is it possible to manage batch jobs via internal or external standard scheduling software ?","Nice to have","Non functional"]
[null,0,2002,"1999","        Load balancing","Is automated load balancing possible? (e.g. by prioritization of loads, processes, calculations, etc.)","Expected","Non functional"]
[null,6,2003,"1989","    Maintainability","","Must have","Non functional"]
[null,0,9654,"2003","Maintenance contract","The solution should support a minimum maintenance period of one year.","Must have","Non functional"]
[null,0,9653,"2003","The system should be open source.","","Expected","Non functional"]
[null,8,2044,"2003","    Viability in the Future","","Must have","Non functional"]
[null,0,9652,"2044","Future security patches","It should be ensured that future security patches will be delivered.","Must have","Non functional"]
[null,2,1988,"2044","        Future Software Releases","Are the software and tools used for this solution planned to be further developed in the future /are new software releases planned (meaning that no software is used that is known to not be further developed)? ","Expected","Non functional"]
[null,1,2004,"2044","        Diagnostics","Does the system support diagnostics? How difficult is it to diagnose errors and their causes or determine which system parts are to be changed?","Nice to have","Non functional"]
[null,1,2005,"2044","        Modifiability / Changeability","How is the user supported when aiming to modify the system (e.g.installing new versions, integrate plug-ins) e.g.by build-in tools?","Must have","Non functional"]
[null,1,2006,"2044","        Stability","It is mandatory that the solution runs on stable version. Do all tools used within the system run on a stable deployment?","Must have","Non functional"]
[null,4,1990,"2003","    Usability","","Must have","Non functional"]
[null,1,1991,"1990","        Operability with low effort","Estimate the user effort to operate the system. What kind of skills other than the normal operation of Windows and web-browsers are required? ","Must have","Non functional"]
[null,0,1992,"1990","        Consistency/Uniformity","To what extent does the system ensure a consistent appearance for all functions ?","Must have","Non functional"]
[null,5,2017,"1989","    Security (System  & User)","","Must have","Non functional"]
[null,1,2018,"2017","        Access Protection/Authorization","System features to protect itself from unauthorized access (on the own system, individual components, functions, data, files, ...) through personnel (deliberately as well as accidentally) and external systems.  ","Must have","Non functional"]
[null,0,2019,"2018","            Safety Mechanisms","Does the solution support the commonly used safety mechanism like CA (Certificate Authority), TLS, PKI, Active Directory, https, etc.","Must have","Non functional"]
[null,1,2020,"2017","        Authorization","","Must have","Non functional"]
[null,0,2021,"2020","            Organizations in Groups/ User Roles","Is it possible to organize users in groups and to assign roles in the groups?","Must have","Non functional"]
[null,0,2023,"2020","            Associative Authorizations","Does the system support the authorization on data level (e.g. rights regarding data of another department)","Must have","Non functional"]
[null,0,2024,"2020","            Administration Surface for User Rights Management","There should be an  administration surface available to assign rights to groups or individual users.","Must have","Non functional"]
[null,2,2025,"2017","        Authentication","","Must have","Non functional"]
[null,0,2027,"2025","            LDAP-Connection","For authorization of the system LDAP is supported.","Must have","Non functional"]
[null,0,2028,"2025","            Active Directory Connection","For authorization of the system Active Directory is supported.","Expected","Non functional"]
[null,0,2029,"2025","            Single-Sign-On Capability","For authorization of the system via LDAP or Active Directory single-sign-on is supported so the user credentials must not be prompted.","Expected","Non functional"]
[null,0,2030,"2025","            Immunity","Does the system protect and block unauthorized access of core system data against user misusage?","Must have","Non functional"]
[null,1,2031,"2017","        Data Protection","","Must have","Non functional"]
[null,0,9655,"2025","GoR PKI support","","Must have","Non functional"]
[null,0,2032,"2031","            Encryption","Is encrypted data storage and transfer possible? If yes, how?","Must have","Non functional"]
[null,0,2033,"2031","            Firewall","How does your solution interact with firewall systems? Are there any challenges to integrate the solution behind a Data Center Firewall ?","Must have","Non functional"]
[null,0,2034,"2017","        Integrity ","Does the solution support a way to assure accuracy and consistency of data, e.g. via primary keys, foreign keys, optimistic concurrency control or similar","Must have","Non functional"]
[null,0,2035,"2017","        Intrusion Detection","Is data protected against outside attackers (data at rest and transit)? If yes, specify how.","Must have","Non functional"]
[null,4,2036,"1989","    Comprehensibility","","Must have","Non functional"]
[null,1,2037,"2036","        Revision Safety","Does the system include a revision/audit system for safe archiving (e.g. version management) / or does it support tools like git, svn ?","Must have","Non functional"]
[null,1,2038,"2036","        Auditing / Auditing Reliability ","Can user activities - auditing - (like \"favorite\" reports, most frequently analyzed tables etc., which user has done what) be evaluated?","Must have","Non functional"]
[null,0,2039,"2036","        Storage and Management of Metadata","Is there a metadata concept? Does the offered solution support automated or half automated metadata management?","Must have","Non functional"]
[null,2,2041,"2036","        Installability","Specify the conditions under which the system is to be installed. Can the solution run in an containerized environment? If yes are official images, e.g. docker images available?","Expected","Non functional"]
[null,1,2042,"2036","        Portability","Can components be used in other projects?","Must have","Non functional"]
[null,1,2043,"2036","        Data masking","Can data be easily anonymous for dev an test purposes ?","Expected","Non functional"]
[null,2,2045,"2036","        Handle Massive Amount of Data","Can the solution handle (ingest, compute) massive amounts of data (>TB)?","Expected","Non functional"]
[null,2,9057,"1989","    Performance","","Expected","Non functional"]
[null,9,9061,"9057","        Does the UI respond with defined performance?","","Must have","Non functional"]
[null,9,9062,"9057","        Does the backend respond with defined performance?","","Must have","Non functional"]
[null,7,2112,"1989","    IT-Infrastructure","","Must have","Non functional"]
[null,2,2122,"2112","            Client-Software","Is the solution designed in a way that no special local installations(such as Active X components) on the clients are required?\n","Must have","Non functional"]
[null,2,2108,"2112","        Data Location","Can you ensure that data in your solution will reside in Rwanda?","Must have","Non functional"]
[null,2,2113,"2112","        Operating System (server-side)","Supported operating systems for operating the entire application in the highest scaling.","Must have","Non functional"]
[null,1,2114,"2113","            Ubuntu","Does the solution operate on Ubuntu ?","Must have","Non functional"]
[null,1,2115,"2113","            Other Linux Distributions","Which Linux Distributions are supported?","Expected","Non functional"]
[null,2,2116,"2112","        Operating System (client-side)","Supported operating systems for operating the entire application in the highest scaling.","Must have","Non functional"]
[null,1,2117,"2116","            Mac OS X","","Must have","Non functional"]
[null,1,2118,"2116","            Windows 10","","Must have","Non functional"]
[null,1,2119,"2116","            Linux Desktop","","Must have","Non functional"]
[null,3,2120,"2112","        Software-Platform","The software platform required to operate the product.","Nice to have","Non functional"]
[null,2,2121,"2120","            Python","Does the solution support the use of Python ?","Nice to have","Non functional"]
[null,1,9060,"2120","            Java","Does the solution support the use of Java?","Nice to have","Non functional"]
[null,4,9063,"2112","        Devops support","","Expected","Non functional"]
[null,1,9064,"9063","            Docker-compose support","","Must have","Non functional"]
[null,1,9065,"9063","            Gitlab support","","Expected","Non functional"]
[null,1,9066,"9063","            Kubernetes support","","Expected","Non functional"]
[null,5,2068,"2112","        UI Interface-Compatibility","","Expected","Non functional"]
[null,0,2069,"2068","            Independent Web based UI","Does the solution support a platform, OS, plug-in(s), language and user device independent, web based UI ?","Must have","Non functional"]
[null,9,2086,"1989","    Monitoring ","Is system monitoring and process monitoring possible(e.g. via dashboards)?","Must have","Non functional"]
[null,3,9059,"2086","Monitoring support","solution should have a system monitoring component or should be able to connect to.","Must have","Non functional"]
[null,0,2087,"2086","        System Activity Tracking","Can the solution deliver data in a way that system activities can be tracked and logged (e.g. monitoring/tracking database activities, system logs ) ?","Must have","Non functional"]
[null,0,2088,"2086","        User Activity Tracking","Can the solution deliver data in a way that user activities can be tracked and logged.","Must have","Non functional"]
[null,0,2089,"2086","        Alert Features","Can the solution deliver data in a way that an alert system is able to notify (via email or system alert feature) the user(e.g. end-users and system administrators) when an event occurs (e.g. KPI falls under a predefined threshold or target).","Must have","Non functional"]
[null,0,9651,"2086","Performance Monitoring","","Must have","Non functional"]
[null,6,2046,"","Supported functional Requirements","","Must have","Functional"]
[null,9,2047,"2046","    Integration","","Must have","Functional"]
[null,11,2048,"2047","        System Integration","Are the following databases/systems/technologies connectable to the solution to integrate data?","Must have","Functional"]
[null,4,2055,"2048","            Message Brokers","","Must have","Functional"]
[null,3,2049,"2055","                Government Service Bus","","Must have","Functional"]
[null,4,9056,"2055","                Kafka","","Nice to have","Functional"]
[null,0,2056,"2048","            Distributed File Systems","","Must have","Functional"]
[null,3,9459,"2048","            Interfaces","","Must have","Functional"]
[null,2,2052,"9459","                ODBC","","Must have","Functional"]
[null,2,2051,"9459","                JDBC","","Must have","Functional"]
[null,2,2053,"9459","                Rest Interface","","Must have","Functional"]
[null,2,9458,"9459","                AMQP","","Must have","Functional"]
[null,3,2054,"9459","                http(s web hooks)","","Must have","Functional"]
[null,1,9460,"9459","                JMS","","Must have","Functional"]
[null,4,9461,"2048","            Databases","","Must have","Functional"]
[null,1,9462,"9461","MySQL","","Must have","Functional"]
[null,2,2050,"9461","                PostgreSQL","","Must have","Functional"]
[null,2,2057,"9461","                NoSQL Databases","","Must have","Functional"]
[null,2,2058,"9461","                Sybase","","Must have","Functional"]
[null,8,2059,"2047","        Data Integration","Which (structured, semi-structured, unstructured) Data Types are usable?","Must have","Functional"]
[null,2,2066,"2059","            Audio Files","","Must have","Functional"]
[null,2,2065,"2059","            Images","","Must have","Functional"]
[null,2,2060,"2059","            CSV","","Must have","Functional"]
[null,2,2061,"2059","            JSON","","Must have","Functional"]
[null,2,2062,"2059","            XML","","Must have","Functional"]
[null,2,2064,"2059","            ASCII text files","","Must have","Functional"]
[null,2,2067,"2059","            Video Files","","Must have","Functional"]
[null,7,2071,"2046","   Some other functional requirement for some component","","Not applicable","Functional"]
[null,12,2080,"2071","    Visualization ","","Not applicable","Functional"]
[null,4,2081,"2080","        Visualisation Requirement1","","Not applicable","Functional"]
[null,3,2082,"2080","        Visualisation Requirement2","","Not applicable","Functional"]
[null,3,2083,"2080","        Visualisation Requirement3","","Not applicable","Functional"]
[null,3,2084,"2080","        Visualisation Requirement4","","Not applicable","Functional"]
[null,4,2085,"2080","        Visualisation Requirement5","","Not applicable","Functional"]
[null,6,2109,"2071","    Some other functional requirement category A","","Not applicable","Functional"]
[null,3,2099,"2109","        some other functional requirement 1","","Not applicable","Functional"]
[null,3,2100,"2109","        some other functional requirement 2","","Not applicable","Functional"]
[null,5,2072,"2071","    Some other functional requirement category B","","Not applicable","Functional"]
[null,1,2073,"2072","        some other functional requirement 1","","Not applicable","Functional"]
[null,1,2074,"2072","        some other functional requirement 2","","Not applicable","Functional"]
[null,1,2075,"2072","        some other functional requirement 3","","Not applicable","Functional"]
[null,1,2076,"2072","        some other functional requirement 4","","Not applicable","Functional"]
[null,5,2077,"2071","    Some other functional requirement category C","","Not applicable","Functional"]
[null,1,2078,"2077","        some other functional requirement 1","","Not applicable","Functional"]
[null,1,2079,"2077","        some other functional requirement 2","","Not applicable","Functional"]
[null,5,2098,"2071","    Some other functional requirement category D","","Not applicable","Functional"]
[null,2,2110,"2098","        some other functional requirement 1","","Not applicable","Functional"]
[null,2,2111,"2098","        some other functional requirement 2","","Not applicable","Functional"]
[null,0,9657,"2120","PHP","","Nice to have","Non functional"]
[null,0,9658,"2120","Node.JS","","Nice to have","Non functional"]
[null,0,9659,"2120","other languages","","Nice to have","Non functional"]

{"sheet":"Sheet1","index":1,"n_rows":256,"n_cols":5,"rows_kept":256}
[{"$f":"SUBSTITUTE(Workpackages!#REF!,\".\",\"##\")","v":{"$error":"#REF!"}},{"$f":"LEN(Workpackages!#REF!)","v":{"$error":"#REF!"}},{"$f":"LEN(A1)","v":{"$error":"#REF!"}},{"$f":"C1-B1","v":{"$error":"#REF!"}},{"$f":"REPT(\"    \",D1)&Workpackages!#REF!","v":{"$error":"#REF!"}}]
[{"$f":"SUBSTITUTE(Workpackages!#REF!,\".\",\"##\")","v":{"$error":"#REF!"}},{"$f":"LEN(Workpackages!#REF!)","v":{"$error":"#REF!"}},{"$error":"#REF!"},{"$f":"C2-B2","v":{"$error":"#REF!"}},{"$f":"REPT(\"    \",D2)&Workpackages!#REF!","v":{"$error":"#REF!"}}]
[{"$f":"SUBSTITUTE(Workpackages!#REF!,\".\",\"##\")","v":{"$error":"#REF!"}},{"$f":"LEN(Workpackages!#REF!)","v":{"$error":"#REF!"}},{"$f":"LEN(A3)","v":{"$error":"#REF!"}},{"$error":"#REF!"},{"$f":"REPT(\"    \",D3)&Workpackages!#REF!","v":{"$error":"#REF!"}}]
[{"$f":"SUBSTITUTE(Workpackages!#REF!,\".\",\"##\")","v":{"$error":"#REF!"}},{"$f":"LEN(Workpackages!#REF!)","v":{"$error":"#REF!"}},{"$f":"LEN(A4)","v":{"$error":"#REF!"}},{"$error":"#REF!"},{"$f":"REPT(\"    \",D4)&Workpackages!#REF!","v":{"$error":"#REF!"}}]
[{"$f":"SUBSTITUTE(Workpackages!#REF!,\".\",\"##\")","v":{"$error":"#REF!"}},{"$f":"LEN(Workpackages!#REF!)","v":{"$error":"#REF!"}},{"$error":"#REF!"},{"$error":"#REF!"},{"$f":"REPT(\"    \",D5)&Workpackages!#REF!","v":{"$error":"#REF!"}}]
[{"$f":"SUBSTITUTE(Workpackages!#REF!,\".\",\"##\")","v":{"$error":"#REF!"}},{"$f":"LEN(Workpackages!#REF!)","v":{"$error":"#REF!"}},{"$error":"#REF!"},{"$error":"#REF!"},{"$f":"REPT(\"    \",D6)&Workpackages!#REF!","v":{"$error":"#REF!"}}]
[{"$f":"SUBSTITUTE(Workpackages!#REF!,\".\",\"##\")","v":{"$error":"#REF!"}},{"$f":"LEN(Workpackages!#REF!)","v":{"$error":"#REF!"}},{"$error":"#REF!"},{"$error":"#REF!"},{"$f":"REPT(\"    \",D7)&Workpackages!#REF!","v":{"$error":"#REF!"}}]
[{"$f":"SUBSTITUTE(Workpackages!#REF!,\".\",\"##\")","v":{"$error":"#REF!"}},{"$f":"LEN(Workpackages!#REF!)","v":{"$error":"#REF!"}},{"$error":"#REF!"},{"$error":"#REF!"},{"$f":"REPT(\"    \",D8)&Workpackages!#REF!","v":{"$error":"#REF!"}}]
[{"$f":"SUBSTITUTE(Workpackages!#REF!,\".\",\"##\")","v":{"$error":"#REF!"}},{"$f":"LEN(Workpackages!#REF!)","v":{"$error":"#REF!"}},{"$error":"#REF!"},{"$error":"#REF!"},{"$f":"REPT(\"    \",D9)&Workpackages!#REF!","v":{"$error":"#REF!"}}]
[{"$f":"SUBSTITUTE(Workpackages!#REF!,\".\",\"##\")","v":{"$error":"#REF!"}},{"$f":"LEN(Workpackages!#REF!)","v":{"$error":"#REF!"}},{"$error":"#REF!"},{"$error":"#REF!"},{"$f":"REPT(\"    \",D10)&Workpackages!#REF!","v":{"$error":"#REF!"}}]
[{"$f":"SUBSTITUTE(Workpackages!#REF!,\".\",\"##\")","v":{"$error":"#REF!"}},{"$f":"LEN(Workpackages!#REF!)","v":{"$error":"#REF!"}},{"$error":"#REF!"},{"$error":"#REF!"},{"$f":"REPT(\"    \",D11)&Workpackages!#REF!","v":{"$error":"#REF!"}}]
[{"$f":"SUBSTITUTE(Workpackages!#REF!,\".\",\"##\")","v":{"$error":"#REF!"}},{"$f":"LEN(Workpackages!#REF!)","v":{"$error":"#REF!"}},{"$error":"#REF!"},{"$error":"#REF!"},{"$f":"REPT(\"    \",D12)&Workpackages!#REF!","v":{"$error":"#REF!"}}]
[{"$f":"SUBSTITUTE(Workpackages!#REF!,\".\",\"##\")","v":{"$error":"#REF!"}},{"$f":"LEN(Workpackages!#REF!)","v":{"$error":"#REF!"}},{"$error":"#REF!"},{"$error":"#REF!"},{"$f":"REPT(\"    \",D13)&Workpackages!#REF!","v":{"$error":"#REF!"}}]
[{"$f":"SUBSTITUTE(Workpackages!#REF!,\".\",\"##\")","v":{"$error":"#REF!"}},{"$f":"LEN(Workpackages!#REF!)","v":{"$error":"#REF!"}},{"$error":"#REF!"},{"$error":"#REF!"},{"$f":"REPT(\"    \",D14)&Workpackages!#REF!","v":{"$error":"#REF!"}}]
[{"$f":"SUBSTITUTE(Workpackages!#REF!,\".\",\"##\")","v":{"$error":"#REF!"}},{"$f":"LEN(Workpackages!#REF!)","v":{"$error":"#REF!"}},{"$error":"#REF!"},{"$error":"#REF!"},{"$f":"REPT(\"    \",D15)&Workpackages!#REF!","v":{"$error":"#REF!"}}]
[{"$f":"SUBSTITUTE(Workpackages!#REF!,\".\",\"##\")","v":{"$error":"#REF!"}},{"$f":"LEN(Workpackages!#REF!)","v":{"$error":"#REF!"}},{"$error":"#REF!"},{"$error":"#REF!"},{"$f":"REPT(\"    \",D16)&Workpackages!#REF!","v":{"$error":"#REF!"}}]
[{"$f":"SUBSTITUTE(Workpackages!#REF!,\".\",\"##\")","v":{"$error":"#REF!"}},{"$f":"LEN(Workpackages!#REF!)","v":{"$error":"#REF!"}},{"$error":"#REF!"},{"$error":"#REF!"},{"$f":"REPT(\"    \",D17)&Workpackages!#REF!","v":{"$error":"#REF!"}}]
[{"$f":"SUBSTITUTE(Workpackages!#REF!,\".\",\"##\")","v":{"$error":"#REF!"}},{"$f":"LEN(Workpackages!#REF!)","v":{"$error":"#REF!"}},{"$error":"#REF!"},{"$error":"#REF!"},{"$f":"REPT(\"    \",D18)&Workpackages!#REF!","v":{"$error":"#REF!"}}]
[{"$f":"SUBSTITUTE(Workpackages!#REF!,\".\",\"##\")","v":{"$error":"#REF!"}},{"$f":"LEN(Workpackages!#REF!)","v":{"$error":"#REF!"}},{"$error":"#REF!"},{"$error":"#REF!"},{"$f":"REPT(\"    \",D19)&Workpackages!#REF!","v":{"$error":"#REF!"}}]
[{"$f":"SUBSTITUTE(Workpackages!#REF!,\".\",\"##\")","v":{"$error":"#REF!"}},{"$f":"LEN(Workpackages!#REF!)","v":{"$error":"#REF!"}},{"$error":"#REF!"},{"$error":"#REF!"},{"$f":"REPT(\"    \",D20)&Workpackages!#REF!","v":{"$error":"#REF!"}}]
[{"$f":"SUBSTITUTE(Workpackages!#REF!,\".\",\"##\")","v":{"$error":"#REF!"}},{"$f":"LEN(Workpackages!#REF!)","v":{"$error":"#REF!"}},{"$error":"#REF!"},{"$error":"#REF!"},{"$f":"REPT(\"    \",D21)&Workpackages!#REF!","v":{"$error":"#REF!"}}]
[{"$f":"SUBSTITUTE(Workpackages!#REF!,\".\",\"##\")","v":{"$error":"#REF!"}},{"$f":"LEN(Workpackages!#REF!)","v":{"$error":"#REF!"}},{"$error":"#REF!"},{"$error":"#REF!"},{"$f":"REPT(\"    \",D22)&Workpackages!#REF!","v":{"$error":"#REF!"}}]
[{"$f":"SUBSTITUTE(Workpackages!#REF!,\".\",\"##\")","v":{"$error":"#REF!"}},{"$f":"LEN(Workpackages!#REF!)","v":{"$error":"#REF!"}},{"$error":"#REF!"},{"$error":"#REF!"},{"$f":"REPT(\"    \",D23)&Workpackages!#REF!","v":{"$error":"#REF!"}}]
[{"$f":"SUBSTITUTE(Workpackages!#REF!,\".\",\"##\")","v":{"$error":"#REF!"}},{"$f":"LEN(Workpackages!#REF!)","v":{"$error":"#REF!"}},{"$f":"LEN(A24)","v":{"$error":"#REF!"}},{"$f":"C24-B24","v":{"$error":"#REF!"}},{"$f":"REPT(\"    \",D24)&Workpackages!#REF!","v":{"$error":"#REF!"}}]
[{"$f":"SUBSTITUTE(Workpackages!#REF!,\".\",\"##\")","v":{"$error":"#REF!"}},{"$f":"LEN(Workpackages!#REF!)","v":{"$error":"#REF!"}},{"$error":"#REF!"},{"$error":"#REF!"},{"$f":"REPT(\"    \",D25)&Workpackages!#REF!","v":{"$error":"#REF!"}}]
[{"$f":"SUBSTITUTE(Workpackages!#REF!,\".\",\"##\")","v":{"$error":"#REF!"}},{"$f":"LEN(Workpackages!#REF!)","v":{"$error":"#REF!"}},{"$error":"#REF!"},{"$error":"#REF!"},{"$f":"REPT(\"    \",D26)&Workpackages!#REF!","v":{"$error":"#REF!"}}]
[{"$f":"SUBSTITUTE(Workpackages!#REF!,\".\",\"##\")","v":{"$error":"#REF!"}},{"$f":"LEN(Workpackages!#REF!)","v":{"$error":"#REF!"}},{"$error":"#REF!"},{"$error":"#REF!"},{"$f":"REPT(\"    \",D27)&Workpackages!#REF!","v":{"$error":"#REF!"}}]
[{"$f":"SUBSTITUTE(Workpackages!#REF!,\".\",\"##\")","v":{"$error":"#REF!"}},{"$f":"LEN(Workpackages!#REF!)","v":{"$error":"#REF!"}},{"$error":"#REF!"},{"$error":"#REF!"},{"$f":"REPT(\"    \",D28)&Workpackages!#REF!","v":{"$error":"#REF!"}}]
[{"$f":"SUBSTITUTE(Workpackages!#REF!,\".\",\"##\")","v":{"$error":"#REF!"}},{"$f":"LEN(Workpackages!#REF!)","v":{"$error":"#REF!"}},{"$error":"#REF!"},{"$error":"#REF!"},{"$f":"REPT(\"    \",D29)&Workpackages!#REF!","v":{"$error":"#REF!"}}]
[{"$f":"SUBSTITUTE(Workpackages!#REF!,\".\",\"##\")","v":{"$error":"#REF!"}},{"$f":"LEN(Workpackages!#REF!)","v":{"$error":"#REF!"}},{"$error":"#REF!"},{"$error":"#REF!"},{"$f":"REPT(\"    \",D30)&Workpackages!#REF!","v":{"$error":"#REF!"}}]
[{"$f":"SUBSTITUTE(Workpackages!#REF!,\".\",\"##\")","v":{"$error":"#REF!"}},{"$f":"LEN(Workpackages!#REF!)","v":{"$error":"#REF!"}},{"$error":"#REF!"},{"$error":"#REF!"},{"$f":"REPT(\"    \",D31)&Workpackages!#REF!","v":{"$error":"#REF!"}}]
[{"$f":"SUBSTITUTE(Workpackages!#REF!,\".\",\"##\")","v":{"$error":"#REF!"}},{"$f":"LEN(Workpackages!#REF!)","v":{"$error":"#REF!"}},{"$error":"#REF!"},{"$error":"#REF!"},{"$f":"REPT(\"    \",D32)&Workpackages!#REF!","v":{"$error":"#REF!"}}]
[{"$f":"SUBSTITUTE(Workpackages!#REF!,\".\",\"##\")","v":{"$error":"#REF!"}},{"$f":"LEN(Workpackages!#REF!)","v":{"$error":"#REF!"}},{"$error":"#REF!"},{"$error":"#REF!"},{"$f":"REPT(\"    \",D33)&Workpackages!#REF!","v":{"$error":"#REF!"}}]
[{"$f":"SUBSTITUTE(Workpackages!#REF!,\".\",\"##\")","v":{"$error":"#REF!"}},{"$f":"LEN(Workpackages!#REF!)","v":{"$error":"#REF!"}},{"$error":"#REF!"},{"$error":"#REF!"},{"$f":"REPT(\"    \",D34)&Workpackages!#REF!","v":{"$error":"#REF!"}}]
[{"$f":"SUBSTITUTE(Workpackages!#REF!,\".\",\"##\")","v":{"$error":"#REF!"}},{"$f":"LEN(Workpackages!#REF!)","v":{"$error":"#REF!"}},{"$error":"#REF!"},{"$error":"#REF!"},{"$f":"REPT(\"    \",D35)&Workpackages!#REF!","v":{"$error":"#REF!"}}]
[{"$f":"SUBSTITUTE(Workpackages!#REF!,\".\",\"##\")","v":{"$error":"#REF!"}},{"$f":"LEN(Workpackages!#REF!)","v":{"$error":"#REF!"}},{"$error":"#REF!"},{"$error":"#REF!"},{"$f":"REPT(\"    \",D36)&Workpackages!#REF!","v":{"$error":"#REF!"}}]
[{"$f":"SUBSTITUTE(Workpackages!#REF!,\".\",\"##\")","v":{"$error":"#REF!"}},{"$f":"LEN(Workpackages!#REF!)","v":{"$error":"#REF!"}},{"$error":"#REF!"},{"$error":"#REF!"},{"$f":"REPT(\"    \",D37)&Workpackages!#REF!","v":{"$error":"#REF!"}}]
[{"$f":"SUBSTITUTE(Workpackages!#REF!,\".\",\"##\")","v":{"$error":"#REF!"}},{"$f":"LEN(Workpackages!#REF!)","v":{"$error":"#REF!"}},{"$error":"#REF!"},{"$error":"#REF!"},{"$f":"REPT(\"    \",D38)&Workpackages!#REF!","v":{"$error":"#REF!"}}]
[{"$f":"SUBSTITUTE(Workpackages!#REF!,\".\",\"##\")","v":{"$error":"#REF!"}},{"$f":"LEN(Workpackages!#REF!)","v":{"$error":"#REF!"}},{"$error":"#REF!"},{"$error":"#REF!"},{"$f":"REPT(\"    \",D39)&Workpackages!#REF!","v":{"$error":"#REF!"}}]
[{"$f":"SUBSTITUTE(Workpackages!#REF!,\".\",\"##\")","v":{"$error":"#REF!"}},{"$f":"LEN(Workpackages!#REF!)","v":{"$error":"#REF!"}},{"$error":"#REF!"},{"$error":"#REF!"},{"$f":"REPT(\"    \",D40)&Workpackages!#REF!","v":{"$error":"#REF!"}}]
[{"$f":"SUBSTITUTE(Workpackages!#REF!,\".\",\"##\")","v":{"$error":"#REF!"}},{"$f":"LEN(Workpackages!#REF!)","v":{"$error":"#REF!"}},{"$error":"#REF!"},{"$error":"#REF!"},{"$f":"REPT(\"    \",D41)&Workpackages!#REF!","v":{"$error":"#REF!"}}]
[{"$f":"SUBSTITUTE(Workpackages!#REF!,\".\",\"##\")","v":{"$error":"#REF!"}},{"$f":"LEN(Workpackages!#REF!)","v":{"$error":"#REF!"}},{"$error":"#REF!"},{"$error":"#REF!"},{"$f":"REPT(\"    \",D42)&Workpackages!#REF!","v":{"$error":"#REF!"}}]
[{"$f":"SUBSTITUTE(Workpackages!#REF!,\".\",\"##\")","v":{"$error":"#REF!"}},{"$f":"LEN(Workpackages!#REF!)","v":{"$error":"#REF!"}},{"$error":"#REF!"},{"$error":"#REF!"},{"$f":"REPT(\"    \",D43)&Workpackages!#REF!","v":{"$error":"#REF!"}}]
[{"$f":"SUBSTITUTE(Workpackages!#REF!,\".\",\"##\")","v":{"$error":"#REF!"}},{"$f":"LEN(Workpackages!#REF!)","v":{"$error":"#REF!"}},{"$error":"#REF!"},{"$error":"#REF!"},{"$f":"REPT(\"    \",D44)&Workpackages!#REF!","v":{"$error":"#REF!"}}]
[{"$f":"SUBSTITUTE(Workpackages!#REF!,\".\",\"##\")","v":{"$error":"#REF!"}},{"$f":"LEN(Workpackages!#REF!)","v":{"$error":"#REF!"}},{"$error":"#REF!"},{"$error":"#REF!"},{"$f":"REPT(\"    \",D45)&Workpackages!#REF!","v":{"$error":"#REF!"}}]
[{"$f":"SUBSTITUTE(Workpackages!#REF!,\".\",\"##\")","v":{"$error":"#REF!"}},{"$f":"LEN(Workpackages!#REF!)","v":{"$error":"#REF!"}},{"$error":"#REF!"},{"$error":"#REF!"},{"$f":"REPT(\"    \",D46)&Workpackages!#REF!","v":{"$error":"#REF!"}}]
[{"$f":"SUBSTITUTE(Workpackages!#REF!,\".\",\"##\")","v":{"$error":"#REF!"}},{"$f":"LEN(Workpackages!#REF!)","v":{"$error":"#REF!"}},{"$error":"#REF!"},{"$error":"#REF!"},{"$f":"REPT(\"    \",D47)&Workpackages!#REF!","v":{"$error":"#REF!"}}]
[{"$f":"SUBSTITUTE(Workpackages!#REF!,\".\",\"##\")","v":{"$error":"#REF!"}},{"$f":"LEN(Workpackages!#REF!)","v":{"$error":"#REF!"}},{"$error":"#REF!"},{"$error":"#REF!"},{"$f":"REPT(\"    \",D48)&Workpackages!#REF!","v":{"$error":"#REF!"}}]
[{"$f":"SUBSTITUTE(Workpackages!#REF!,\".\",\"##\")","v":{"$error":"#REF!"}},{"$f":"LEN(Workpackages!#REF!)","v":{"$error":"#REF!"}},{"$error":"#REF!"},{"$error":"#REF!"},{"$f":"REPT(\"    \",D49)&Workpackages!#REF!","v":{"$error":"#REF!"}}]
[{"$f":"SUBSTITUTE(Workpackages!#REF!,\".\",\"##\")","v":{"$error":"#REF!"}},{"$f":"LEN(Workpackages!#REF!)","v":{"$error":"#REF!"}},{"$error":"#REF!"},{"$error":"#REF!"},{"$f":"REPT(\"    \",D50)&Workpackages!#REF!","v":{"$error":"#REF!"}}]
[{"$f":"SUBSTITUTE(Workpackages!#REF!,\".\",\"##\")","v":{"$error":"#REF!"}},{"$f":"LEN(Workpackages!#REF!)","v":{"$error":"#REF!"}},{"$error":"#REF!"},{"$error":"#REF!"},{"$f":"REPT(\"    \",D51)&Workpackages!#REF!","v":{"$error":"#REF!"}}]
[{"$f":"SUBSTITUTE(Workpackages!#REF!,\".\",\"##\")","v":{"$error":"#REF!"}},{"$f":"LEN(Workpackages!#REF!)","v":{"$error":"#REF!"}},{"$error":"#REF!"},{"$error":"#REF!"},{"$f":"REPT(\"    \",D52)&Workpackages!#REF!","v":{"$error":"#REF!"}}]
[{"$f":"SUBSTITUTE(Workpackages!#REF!,\".\",\"##\")","v":{"$error":"#REF!"}},{"$f":"LEN(Workpackages!#REF!)","v":{"$error":"#REF!"}},{"$error":"#REF!"},{"$error":"#REF!"},{"$f":"REPT(\"    \",D53)&Workpackages!#REF!","v":{"$error":"#REF!"}}]
[{"$f":"SUBSTITUTE(Workpackages!#REF!,\".\",\"##\")","v":{"$error":"#REF!"}},{"$f":"LEN(Workpackages!#REF!)","v":{"$error":"#REF!"}},{"$error":"#REF!"},{"$error":"#REF!"},{"$f":"REPT(\"    \",D54)&Workpackages!#REF!","v":{"$error":"#REF!"}}]
[{"$f":"SUBSTITUTE(Workpackages!#REF!,\".\",\"##\")","v":{"$error":"#REF!"}},{"$f":"LEN(Workpackages!#REF!)","v":{"$error":"#REF!"}},{"$error":"#REF!"},{"$error":"#REF!"},{"$f":"REPT(\"    \",D55)&Workpackages!#REF!","v":{"$error":"#REF!"}}]
[{"$f":"SUBSTITUTE(Workpackages!#REF!,\".\",\"##\")","v":{"$error":"#REF!"}},{"$f":"LEN(Workpackages!#REF!)","v":{"$error":"#REF!"}},{"$error":"#REF!"},{"$error":"#REF!"},{"$f":"REPT(\"    \",D56)&Workpackages!#REF!","v":{"$error":"#REF!"}}]
[{"$f":"SUBSTITUTE(Workpackages!#REF!,\".\",\"##\")","v":{"$error":"#REF!"}},{"$f":"LEN(Workpackages!#REF!)","v":{"$error":"#REF!"}},{"$error":"#REF!"},{"$error":"#REF!"},{"$f":"REPT(\"    \",D57)&Workpackages!#REF!","v":{"$error":"#REF!"}}]
[{"$f":"SUBSTITUTE(Workpackages!#REF!,\".\",\"##\")","v":{"$error":"#REF!"}},{"$f":"LEN(Workpackages!#REF!)","v":{"$error":"#REF!"}},{"$error":"#REF!"},{"$error":"#REF!"},{"$f":"REPT(\"    \",D58)&Workpackages!#REF!","v":{"$error":"#REF!"}}]
[{"$f":"SUBSTITUTE(Workpackages!#REF!,\".\",\"##\")","v":{"$error":"#REF!"}},{"$f":"LEN(Workpackages!#REF!)","v":{"$error":"#REF!"}},{"$error":"#REF!"},{"$error":"#REF!"},{"$f":"REPT(\"    \",D59)&Workpackages!#REF!","v":{"$error":"#REF!"}}]
[{"$f":"SUBSTITUTE(Workpackages!#REF!,\".\",\"##\")","v":{"$error":"#REF!"}},{"$f":"LEN(Workpackages!#REF!)","v":{"$error":"#REF!"}},{"$error":"#REF!"},{"$error":"#REF!"},{"$f":"REPT(\"    \",D60)&Workpackages!#REF!","v":{"$error":"#REF!"}}]
[{"$f":"SUBSTITUTE(Workpackages!#REF!,\".\",\"##\")","v":{"$error":"#REF!"}},{"$f":"LEN(Workpackages!#REF!)","v":{"$error":"#REF!"}},{"$error":"#REF!"},{"$error":"#REF!"},{"$f":"REPT(\"    \",D61)&Workpackages!#REF!","v":{"$error":"#REF!"}}]
[{"$f":"SUBSTITUTE(Workpackages!#REF!,\".\",\"##\")","v":{"$error":"#REF!"}},{"$f":"LEN(Workpackages!#REF!)","v":{"$error":"#REF!"}},{"$error":"#REF!"},{"$error":"#REF!"},{"$f":"REPT(\"    \",D62)&Workpackages!#REF!","v":{"$error":"#REF!"}}]
[{"$f":"SUBSTITUTE(Workpackages!#REF!,\".\",\"##\")","v":{"$error":"#REF!"}},{"$f":"LEN(Workpackages!#REF!)","v":{"$error":"#REF!"}},{"$error":"#REF!"},{"$error":"#REF!"},{"$f":"REPT(\"    \",D63)&Workpackages!#REF!","v":{"$error":"#REF!"}}]
[{"$f":"SUBSTITUTE(Workpackages!#REF!,\".\",\"##\")","v":{"$error":"#REF!"}},{"$f":"LEN(Workpackages!#REF!)","v":{"$error":"#REF!"}},{"$error":"#REF!"},{"$error":"#REF!"},{"$f":"REPT(\"    \",D64)&Workpackages!#REF!","v":{"$error":"#REF!"}}]
[{"$f":"SUBSTITUTE(Workpackages!#REF!,\".\",\"##\")","v":{"$error":"#REF!"}},{"$f":"LEN(Workpackages!#REF!)","v":{"$error":"#REF!"}},{"$error":"#REF!"},{"$error":"#REF!"},{"$f":"REPT(\"    \",D65)&Workpackages!#REF!","v":{"$error":"#REF!"}}]
[{"$f":"SUBSTITUTE(Workpackages!#REF!,\".\",\"##\")","v":{"$error":"#REF!"}},{"$f":"LEN(Workpackages!#REF!)","v":{"$error":"#REF!"}},{"$error":"#REF!"},{"$error":"#REF!"},{"$f":"REPT(\"    \",D66)&Workpackages!#REF!","v":{"$error":"#REF!"}}]
[{"$f":"SUBSTITUTE(Workpackages!#REF!,\".\",\"##\")","v":{"$error":"#REF!"}},{"$f":"LEN(Workpackages!#REF!)","v":{"$error":"#REF!"}},{"$error":"#REF!"},{"$error":"#REF!"},{"$f":"REPT(\"    \",D67)&Workpackages!#REF!","v":{"$error":"#REF!"}}]
[{"$f":"SUBSTITUTE(Workpackages!#REF!,\".\",\"##\")","v":{"$error":"#REF!"}},{"$f":"LEN(Workpackages!#REF!)","v":{"$error":"#REF!"}},{"$error":"#REF!"},{"$error":"#REF!"},{"$f":"REPT(\"    \",D68)&Workpackages!#REF!","v":{"$error":"#REF!"}}]
[{"$f":"SUBSTITUTE(Workpackages!#REF!,\".\",\"##\")","v":{"$error":"#REF!"}},{"$f":"LEN(Workpackages!#REF!)","v":{"$error":"#REF!"}},{"$error":"#REF!"},{"$error":"#REF!"},{"$f":"REPT(\"    \",D69)&Workpackages!#REF!","v":{"$error":"#REF!"}}]
[{"$f":"SUBSTITUTE(Workpackages!#REF!,\".\",\"##\")","v":{"$error":"#REF!"}},{"$f":"LEN(Workpackages!#REF!)","v":{"$error":"#REF!"}},{"$error":"#REF!"},{"$error":"#REF!"},{"$f":"REPT(\"    \",D70)&Workpackages!#REF!","v":{"$error":"#REF!"}}]
[{"$f":"SUBSTITUTE(Workpackages!#REF!,\".\",\"##\")","v":{"$error":"#REF!"}},{"$f":"LEN(Workpackages!#REF!)","v":{"$error":"#REF!"}},{"$error":"#REF!"},{"$error":"#REF!"},{"$f":"REPT(\"    \",D71)&Workpackages!#REF!","v":{"$error":"#REF!"}}]
[{"$f":"SUBSTITUTE(Workpackages!#REF!,\".\",\"##\")","v":{"$error":"#REF!"}},{"$f":"LEN(Workpackages!#REF!)","v":{"$error":"#REF!"}},{"$error":"#REF!"},{"$error":"#REF!"},{"$f":"REPT(\"    \",D72)&Workpackages!#REF!","v":{"$error":"#REF!"}}]
[{"$f":"SUBSTITUTE(Workpackages!#REF!,\".\",\"##\")","v":{"$error":"#REF!"}},{"$f":"LEN(Workpackages!#REF!)","v":{"$error":"#REF!"}},{"$error":"#REF!"},{"$error":"#REF!"},{"$f":"REPT(\"    \",D73)&Workpackages!#REF!","v":{"$error":"#REF!"}}]
[{"$f":"SUBSTITUTE(Workpackages!#REF!,\".\",\"##\")","v":{"$error":"#REF!"}},{"$f":"LEN(Workpackages!#REF!)","v":{"$error":"#REF!"}},{"$error":"#REF!"},{"$error":"#REF!"},{"$f":"REPT(\"    \",D74)&Workpackages!#REF!","v":{"$error":"#REF!"}}]
[{"$f":"SUBSTITUTE(Workpackages!#REF!,\".\",\"##\")","v":{"$error":"#REF!"}},{"$f":"LEN(Workpackages!#REF!)","v":{"$error":"#REF!"}},{"$error":"#REF!"},{"$error":"#REF!"},{"$f":"REPT(\"    \",D75)&Workpackages!#REF!","v":{"$error":"#REF!"}}]
[{"$f":"SUBSTITUTE(Workpackages!#REF!,\".\",\"##\")","v":{"$error":"#REF!"}},{"$f":"LEN(Workpackages!#REF!)","v":{"$error":"#REF!"}},{"$error":"#REF!"},{"$error":"#REF!"},{"$f":"REPT(\"    \",D76)&Workpackages!#REF!","v":{"$error":"#REF!"}}]
[{"$f":"SUBSTITUTE(Workpackages!#REF!,\".\",\"##\")","v":{"$error":"#REF!"}},{"$f":"LEN(Workpackages!#REF!)","v":{"$error":"#REF!"}},{"$error":"#REF!"},{"$error":"#REF!"},{"$f":"REPT(\"    \",D77)&Workpackages!#REF!","v":{"$error":"#REF!"}}]
[{"$f":"SUBSTITUTE(Workpackages!#REF!,\".\",\"##\")","v":{"$error":"#REF!"}},{"$f":"LEN(Workpackages!#REF!)","v":{"$error":"#REF!"}},{"$error":"#REF!"},{"$error":"#REF!"},{"$f":"REPT(\"    \",D78)&Workpackages!#REF!","v":{"$error":"#REF!"}}]
[{"$f":"SUBSTITUTE(Workpackages!#REF!,\".\",\"##\")","v":{"$error":"#REF!"}},{"$f":"LEN(Workpackages!#REF!)","v":{"$error":"#REF!"}},{"$error":"#REF!"},{"$error":"#REF!"},{"$f":"REPT(\"    \",D79)&Workpackages!#REF!","v":{"$error":"#REF!"}}]
[{"$f":"SUBSTITUTE(Workpackages!#REF!,\".\",\"##\")","v":{"$error":"#REF!"}},{"$f":"LEN(Workpackages!#REF!)","v":{"$error":"#REF!"}},{"$error":"#REF!"},{"$error":"#REF!"},{"$f":"REPT(\"    \",D80)&Workpackages!#REF!","v":{"$error":"#REF!"}}]
[{"$f":"SUBSTITUTE(Workpackages!#REF!,\".\",\"##\")","v":{"$error":"#REF!"}},{"$f":"LEN(Workpackages!#REF!)","v":{"$error":"#REF!"}},{"$error":"#REF!"},{"$error":"#REF!"},{"$f":"REPT(\"    \",D81)&Workpackages!#REF!","v":{"$error":"#REF!"}}]
[{"$f":"SUBSTITUTE(Workpackages!#REF!,\".\",\"##\")","v":{"$error":"#REF!"}},{"$f":"LEN(Workpackages!#REF!)","v":{"$error":"#REF!"}},{"$error":"#REF!"},{"$error":"#REF!"},{"$f":"REPT(\"    \",D82)&Workpackages!#REF!","v":{"$error":"#REF!"}}]
[{"$f":"SUBSTITUTE(Workpackages!#REF!,\".\",\"##\")","v":{"$error":"#REF!"}},{"$f":"LEN(Workpackages!#REF!)","v":{"$error":"#REF!"}},{"$error":"#REF!"},{"$error":"#REF!"},{"$f":"REPT(\"    \",D83)&Workpackages!#REF!","v":{"$error":"#REF!"}}]
[{"$f":"SUBSTITUTE(Workpackages!#REF!,\".\",\"##\")","v":{"$error":"#REF!"}},{"$f":"LEN(Workpackages!#REF!)","v":{"$error":"#REF!"}},{"$error":"#REF!"},{"$error":"#REF!"},{"$f":"REPT(\"    \",D84)&Workpackages!#REF!","v":{"$error":"#REF!"}}]
[{"$f":"SUBSTITUTE(Workpackages!#REF!,\".\",\"##\")","v":{"$error":"#REF!"}},{"$f":"LEN(Workpackages!#REF!)","v":{"$error":"#REF!"}},{"$error":"#REF!"},{"$error":"#REF!"},{"$f":"REPT(\"    \",D85)&Workpackages!#REF!","v":{"$error":"#REF!"}}]
[{"$f":"SUBSTITUTE(Workpackages!#REF!,\".\",\"##\")","v":{"$error":"#REF!"}},{"$f":"LEN(Workpackages!#REF!)","v":{"$error":"#REF!"}},{"$error":"#REF!"},{"$error":"#REF!"},{"$f":"REPT(\"    \",D86)&Workpackages!#REF!","v":{"$error":"#REF!"}}]
[{"$f":"SUBSTITUTE(Workpackages!#REF!,\".\",\"##\")","v":{"$error":"#REF!"}},{"$f":"LEN(Workpackages!#REF!)","v":{"$error":"#REF!"}},{"$error":"#REF!"},{"$error":"#REF!"},{"$f":"REPT(\"    \",D87)&Workpackages!#REF!","v":{"$error":"#REF!"}}]
[{"$f":"SUBSTITUTE(Workpackages!#REF!,\".\",\"##\")","v":{"$error":"#REF!"}},{"$f":"LEN(Workpackages!#REF!)","v":{"$error":"#REF!"}},{"$f":"LEN(A88)","v":{"$error":"#REF!"}},{"$f":"C88-B88","v":{"$error":"#REF!"}},{"$f":"REPT(\"    \",D88)&Workpackages!#REF!","v":{"$error":"#REF!"}}]
[{"$f":"SUBSTITUTE(Workpackages!#REF!,\".\",\"##\")","v":{"$error":"#REF!"}},{"$f":"LEN(Workpackages!#REF!)","v":{"$error":"#REF!"}},{"$error":"#REF!"},{"$error":"#REF!"},{"$f":"REPT(\"    \",D89)&Workpackages!#REF!","v":{"$error":"#REF!"}}]
[{"$f":"SUBSTITUTE(Workpackages!#REF!,\".\",\"##\")","v":{"$error":"#REF!"}},{"$f":"LEN(Workpackages!#REF!)","v":{"$error":"#REF!"}},{"$error":"#REF!"},{"$error":"#REF!"},{"$f":"REPT(\"    \",D90)&Workpackages!#REF!","v":{"$error":"#REF!"}}]
[{"$f":"SUBSTITUTE(Workpackages!#REF!,\".\",\"##\")","v":{"$error":"#REF!"}},{"$f":"LEN(Workpackages!#REF!)","v":{"$error":"#REF!"}},{"$error":"#REF!"},{"$error":"#REF!"},{"$f":"REPT(\"    \",D91)&Workpackages!#REF!","v":{"$error":"#REF!"}}]
[{"$f":"SUBSTITUTE(Workpackages!#REF!,\".\",\"##\")","v":{"$error":"#REF!"}},{"$f":"LEN(Workpackages!#REF!)","v":{"$error":"#REF!"}},{"$error":"#REF!"},{"$error":"#REF!"},{"$f":"REPT(\"    \",D92)&Workpackages!#REF!","v":{"$error":"#REF!"}}]
[{"$f":"SUBSTITUTE(Workpackages!#REF!,\".\",\"##\")","v":{"$error":"#REF!"}},{"$f":"LEN(Workpackages!#REF!)","v":{"$error":"#REF!"}},{"$error":"#REF!"},{"$error":"#REF!"},{"$f":"REPT(\"    \",D93)&Workpackages!#REF!","v":{"$error":"#REF!"}}]
[{"$f":"SUBSTITUTE(Workpackages!#REF!,\".\",\"##\")","v":{"$error":"#REF!"}},{"$f":"LEN(Workpackages!#REF!)","v":{"$error":"#REF!"}},{"$error":"#REF!"},{"$error":"#REF!"},{"$f":"REPT(\"    \",D94)&Workpackages!#REF!","v":{"$error":"#REF!"}}]
[{"$f":"SUBSTITUTE(Workpackages!#REF!,\".\",\"##\")","v":{"$error":"#REF!"}},{"$f":"LEN(Workpackages!#REF!)","v":{"$error":"#REF!"}},{"$error":"#REF!"},{"$error":"#REF!"},{"$f":"REPT(\"    \",D95)&Workpackages!#REF!","v":{"$error":"#REF!"}}]
[{"$f":"SUBSTITUTE(Workpackages!#REF!,\".\",\"##\")","v":{"$error":"#REF!"}},{"$f":"LEN(Workpackages!#REF!)","v":{"$error":"#REF!"}},{"$error":"#REF!"},{"$error":"#REF!"},{"$f":"REPT(\"    \",D96)&Workpackages!#REF!","v":{"$error":"#REF!"}}]
[{"$f":"SUBSTITUTE(Workpackages!#REF!,\".\",\"##\")","v":{"$error":"#REF!"}},{"$f":"LEN(Workpackages!#REF!)","v":{"$error":"#REF!"}},{"$error":"#REF!"},{"$error":"#REF!"},{"$f":"REPT(\"    \",D97)&Workpackages!#REF!","v":{"$error":"#REF!"}}]
[{"$f":"SUBSTITUTE(Workpackages!#REF!,\".\",\"##\")","v":{"$error":"#REF!"}},{"$f":"LEN(Workpackages!#REF!)","v":{"$error":"#REF!"}},{"$error":"#REF!"},{"$error":"#REF!"},{"$f":"REPT(\"    \",D98)&Workpackages!#REF!","v":{"$error":"#REF!"}}]
[{"$f":"SUBSTITUTE(Workpackages!#REF!,\".\",\"##\")","v":{"$error":"#REF!"}},{"$f":"LEN(Workpackages!#REF!)","v":{"$error":"#REF!"}},{"$error":"#REF!"},{"$error":"#REF!"},{"$f":"REPT(\"    \",D99)&Workpackages!#REF!","v":{"$error":"#REF!"}}]
[{"$f":"SUBSTITUTE(Workpackages!#REF!,\".\",\"##\")","v":{"$error":"#REF!"}},{"$f":"LEN(Workpackages!#REF!)","v":{"$error":"#REF!"}},{"$error":"#REF!"},{"$error":"#REF!"},{"$f":"REPT(\"    \",D100)&Workpackages!#REF!","v":{"$error":"#REF!"}}]
[{"$f":"SUBSTITUTE(Workpackages!#REF!,\".\",\"##\")","v":{"$error":"#REF!"}},{"$f":"LEN(Workpackages!#REF!)","v":{"$error":"#REF!"}},{"$error":"#REF!"},{"$error":"#REF!"},{"$f":"REPT(\"    \",D101)&Workpackages!#REF!","v":{"$error":"#REF!"}}]
[{"$f":"SUBSTITUTE(Workpackages!#REF!,\".\",\"##\")","v":{"$error":"#REF!"}},{"$f":"LEN(Workpackages!#REF!)","v":{"$error":"#REF!"}},{"$error":"#REF!"},{"$error":"#REF!"},{"$f":"REPT(\"    \",D102)&Workpackages!#REF!","v":{"$error":"#REF!"}}]
[{"$f":"SUBSTITUTE(Workpackages!#REF!,\".\",\"##\")","v":{"$error":"#REF!"}},{"$f":"LEN(Workpackages!#REF!)","v":{"$error":"#REF!"}},{"$error":"#REF!"},{"$error":"#REF!"},{"$f":"REPT(\"    \",D103)&Workpackages!#REF!","v":{"$error":"#REF!"}}]
[{"$f":"SUBSTITUTE(Workpackages!#REF!,\".\",\"##\")","v":{"$error":"#REF!"}},{"$f":"LEN(Workpackages!#REF!)","v":{"$error":"#REF!"}},{"$error":"#REF!"},{"$error":"#REF!"},{"$f":"REPT(\"    \",D104)&Workpackages!#REF!","v":{"$error":"#REF!"}}]
[{"$f":"SUBSTITUTE(Workpackages!#REF!,\".\",\"##\")","v":{"$error":"#REF!"}},{"$f":"LEN(Workpackages!#REF!)","v":{"$error":"#REF!"}},{"$error":"#REF!"},{"$error":"#REF!"},{"$f":"REPT(\"    \",D105)&Workpackages!#REF!","v":{"$error":"#REF!"}}]
[{"$f":"SUBSTITUTE(Workpackages!#REF!,\".\",\"##\")","v":{"$error":"#REF!"}},{"$f":"LEN(Workpackages!#REF!)","v":{"$error":"#REF!"}},{"$error":"#REF!"},{"$error":"#REF!"},{"$f":"REPT(\"    \",D106)&Workpackages!#REF!","v":{"$error":"#REF!"}}]
[{"$f":"SUBSTITUTE(Workpackages!#REF!,\".\",\"##\")","v":{"$error":"#REF!"}},{"$f":"LEN(Workpackages!#REF!)","v":{"$error":"#REF!"}},{"$error":"#REF!"},{"$error":"#REF!"},{"$f":"REPT(\"    \",D107)&Workpackages!#REF!","v":{"$error":"#REF!"}}]
[{"$f":"SUBSTITUTE(Workpackages!#REF!,\".\",\"##\")","v":{"$error":"#REF!"}},{"$f":"LEN(Workpackages!#REF!)","v":{"$error":"#REF!"}},{"$error":"#REF!"},{"$error":"#REF!"},{"$f":"REPT(\"    \",D108)&Workpackages!#REF!","v":{"$error":"#REF!"}}]
[{"$f":"SUBSTITUTE(Workpackages!#REF!,\".\",\"##\")","v":{"$error":"#REF!"}},{"$f":"LEN(Workpackages!#REF!)","v":{"$error":"#REF!"}},{"$error":"#REF!"},{"$error":"#REF!"},{"$f":"REPT(\"    \",D109)&Workpackages!#REF!","v":{"$error":"#REF!"}}]
[{"$f":"SUBSTITUTE(Workpackages!#REF!,\".\",\"##\")","v":{"$error":"#REF!"}},{"$f":"LEN(Workpackages!#REF!)","v":{"$error":"#REF!"}},{"$error":"#REF!"},{"$error":"#REF!"},{"$f":"REPT(\"    \",D110)&Workpackages!#REF!","v":{"$error":"#REF!"}}]
[{"$f":"SUBSTITUTE(Workpackages!#REF!,\".\",\"##\")","v":{"$error":"#REF!"}},{"$f":"LEN(Workpackages!#REF!)","v":{"$error":"#REF!"}},{"$error":"#REF!"},{"$error":"#REF!"},{"$f":"REPT(\"    \",D111)&Workpackages!#REF!","v":{"$error":"#REF!"}}]
[{"$f":"SUBSTITUTE(Workpackages!#REF!,\".\",\"##\")","v":{"$error":"#REF!"}},{"$f":"LEN(Workpackages!#REF!)","v":{"$error":"#REF!"}},{"$error":"#REF!"},{"$error":"#REF!"},{"$f":"REPT(\"    \",D112)&Workpackages!#REF!","v":{"$error":"#REF!"}}]
[{"$f":"SUBSTITUTE(Workpackages!#REF!,\".\",\"##\")","v":{"$error":"#REF!"}},{"$f":"LEN(Workpackages!#REF!)","v":{"$error":"#REF!"}},{"$error":"#REF!"},{"$error":"#REF!"},{"$f":"REPT(\"    \",D113)&Workpackages!#REF!","v":{"$error":"#REF!"}}]
[{"$f":"SUBSTITUTE(Workpackages!#REF!,\".\",\"##\")","v":{"$error":"#REF!"}},{"$f":"LEN(Workpackages!#REF!)","v":{"$error":"#REF!"}},{"$error":"#REF!"},{"$error":"#REF!"},{"$f":"REPT(\"    \",D114)&Workpackages!#REF!","v":{"$error":"#REF!"}}]
[{"$f":"SUBSTITUTE(Workpackages!#REF!,\".\",\"##\")","v":{"$error":"#REF!"}},{"$f":"LEN(Workpackages!#REF!)","v":{"$error":"#REF!"}},{"$error":"#REF!"},{"$error":"#REF!"},{"$f":"REPT(\"    \",D115)&Workpackages!#REF!","v":{"$error":"#REF!"}}]
[{"$f":"SUBSTITUTE(Workpackages!#REF!,\".\",\"##\")","v":{"$error":"#REF!"}},{"$f":"LEN(Workpackages!#REF!)","v":{"$error":"#REF!"}},{"$error":"#REF!"},{"$error":"#REF!"},{"$f":"REPT(\"    \",D116)&Workpackages!#REF!","v":{"$error":"#REF!"}}]
[{"$f":"SUBSTITUTE(Workpackages!#REF!,\".\",\"##\")","v":{"$error":"#REF!"}},{"$f":"LEN(Workpackages!#REF!)","v":{"$error":"#REF!"}},{"$error":"#REF!"},{"$error":"#REF!"},{"$f":"REPT(\"    \",D117)&Workpackages!#REF!","v":{"$error":"#REF!"}}]
[{"$f":"SUBSTITUTE(Workpackages!#REF!,\".\",\"##\")","v":{"$error":"#REF!"}},{"$f":"LEN(Workpackages!#REF!)","v":{"$error":"#REF!"}},{"$error":"#REF!"},{"$error":"#REF!"},{"$f":"REPT(\"    \",D118)&Workpackages!#REF!","v":{"$error":"#REF!"}}]
[{"$f":"SUBSTITUTE(Workpackages!#REF!,\".\",\"##\")","v":{"$error":"#REF!"}},{"$f":"LEN(Workpackages!#REF!)","v":{"$error":"#REF!"}},{"$error":"#REF!"},{"$error":"#REF!"},{"$f":"REPT(\"    \",D119)&Workpackages!#REF!","v":{"$error":"#REF!"}}]
[{"$f":"SUBSTITUTE(Workpackages!#REF!,\".\",\"##\")","v":{"$error":"#REF!"}},{"$f":"LEN(Workpackages!#REF!)","v":{"$error":"#REF!"}},{"$error":"#REF!"},{"$error":"#REF!"},{"$f":"REPT(\"    \",D120)&Workpackages!#REF!","v":{"$error":"#REF!"}}]
[{"$f":"SUBSTITUTE(Workpackages!#REF!,\".\",\"##\")","v":{"$error":"#REF!"}},{"$f":"LEN(Workpackages!#REF!)","v":{"$error":"#REF!"}},{"$error":"#REF!"},{"$error":"#REF!"},{"$f":"REPT(\"    \",D121)&Workpackages!#REF!","v":{"$error":"#REF!"}}]
[{"$f":"SUBSTITUTE(Workpackages!#REF!,\".\",\"##\")","v":{"$error":"#REF!"}},{"$f":"LEN(Workpackages!#REF!)","v":{"$error":"#REF!"}},{"$error":"#REF!"},{"$error":"#REF!"},{"$f":"REPT(\"    \",D122)&Workpackages!#REF!","v":{"$error":"#REF!"}}]
[{"$f":"SUBSTITUTE(Workpackages!#REF!,\".\",\"##\")","v":{"$error":"#REF!"}},{"$f":"LEN(Workpackages!#REF!)","v":{"$error":"#REF!"}},{"$error":"#REF!"},{"$error":"#REF!"},{"$f":"REPT(\"    \",D123)&Workpackages!#REF!","v":{"$error":"#REF!"}}]
[{"$f":"SUBSTITUTE(Workpackages!#REF!,\".\",\"##\")","v":{"$error":"#REF!"}},{"$f":"LEN(Workpackages!#REF!)","v":{"$error":"#REF!"}},{"$error":"#REF!"},{"$error":"#REF!"},{"$f":"REPT(\"    \",D124)&Workpackages!#REF!","v":{"$error":"#REF!"}}]
[{"$f":"SUBSTITUTE(Workpackages!#REF!,\".\",\"##\")","v":{"$error":"#REF!"}},{"$f":"LEN(Workpackages!#REF!)","v":{"$error":"#REF!"}},{"$error":"#REF!"},{"$error":"#REF!"},{"$f":"REPT(\"    \",D125)&Workpackages!#REF!","v":{"$error":"#REF!"}}]
[{"$f":"SUBSTITUTE(Workpackages!#REF!,\".\",\"##\")","v":{"$error":"#REF!"}},{"$f":"LEN(Workpackages!#REF!)","v":{"$error":"#REF!"}},{"$error":"#REF!"},{"$error":"#REF!"},{"$f":"REPT(\"    \",D126)&Workpackages!#REF!","v":{"$error":"#REF!"}}]
[{"$f":"SUBSTITUTE(Workpackages!#REF!,\".\",\"##\")","v":{"$error":"#REF!"}},{"$f":"LEN(Workpackages!#REF!)","v":{"$error":"#REF!"}},{"$error":"#REF!"},{"$error":"#REF!"},{"$f":"REPT(\"    \",D127)&Workpackages!#REF!","v":{"$error":"#REF!"}}]
[{"$f":"SUBSTITUTE(Workpackages!#REF!,\".\",\"##\")","v":{"$error":"#REF!"}},{"$f":"LEN(Workpackages!#REF!)","v":{"$error":"#REF!"}},{"$error":"#REF!"},{"$error":"#REF!"},{"$f":"REPT(\"    \",D128)&Workpackages!#REF!","v":{"$error":"#REF!"}}]
[{"$f":"SUBSTITUTE(Workpackages!#REF!,\".\",\"##\")","v":{"$error":"#REF!"}},{"$f":"LEN(Workpackages!#REF!)","v":{"$error":"#REF!"}},{"$error":"#REF!"},{"$error":"#REF!"},{"$f":"REPT(\"    \",D129)&Workpackages!#REF!","v":{"$error":"#REF!"}}]
[{"$f":"SUBSTITUTE(Workpackages!#REF!,\".\",\"##\")","v":{"$error":"#REF!"}},{"$f":"LEN(Workpackages!#REF!)","v":{"$error":"#REF!"}},{"$error":"#REF!"},{"$error":"#REF!"},{"$f":"REPT(\"    \",D130)&Workpackages!#REF!","v":{"$error":"#REF!"}}]
[{"$f":"SUBSTITUTE(Workpackages!#REF!,\".\",\"##\")","v":{"$error":"#REF!"}},{"$f":"LEN(Workpackages!#REF!)","v":{"$error":"#REF!"}},{"$error":"#REF!"},{"$error":"#REF!"},{"$f":"REPT(\"    \",D131)&Workpackages!#REF!","v":{"$error":"#REF!"}}]
[{"$f":"SUBSTITUTE(Workpackages!#REF!,\".\",\"##\")","v":{"$error":"#REF!"}},{"$f":"LEN(Workpackages!#REF!)","v":{"$error":"#REF!"}},{"$error":"#REF!"},{"$error":"#REF!"},{"$f":"REPT(\"    \",D132)&Workpackages!#REF!","v":{"$error":"#REF!"}}]
[{"$f":"SUBSTITUTE(Workpackages!#REF!,\".\",\"##\")","v":{"$error":"#REF!"}},{"$f":"LEN(Workpackages!#REF!)","v":{"$error":"#REF!"}},{"$error":"#REF!"},{"$error":"#REF!"},{"$f":"REPT(\"    \",D133)&Workpackages!#REF!","v":{"$error":"#REF!"}}]
[{"$f":"SUBSTITUTE(Workpackages!#REF!,\".\",\"##\")","v":{"$error":"#REF!"}},{"$f":"LEN(Workpackages!#REF!)","v":{"$error":"#REF!"}},{"$error":"#REF!"},{"$error":"#REF!"},{"$f":"REPT(\"    \",D134)&Workpackages!#REF!","v":{"$error":"#REF!"}}]
[{"$f":"SUBSTITUTE(Workpackages!#REF!,\".\",\"##\")","v":{"$error":"#REF!"}},{"$f":"LEN(Workpackages!#REF!)","v":{"$error":"#REF!"}},{"$error":"#REF!"},{"$error":"#REF!"},{"$f":"REPT(\"    \",D135)&Workpackages!#REF!","v":{"$error":"#REF!"}}]
[{"$f":"SUBSTITUTE(Workpackages!#REF!,\".\",\"##\")","v":{"$error":"#REF!"}},{"$f":"LEN(Workpackages!#REF!)","v":{"$error":"#REF!"}},{"$error":"#REF!"},{"$error":"#REF!"},{"$f":"REPT(\"    \",D136)&Workpackages!#REF!","v":{"$error":"#REF!"}}]
[{"$f":"SUBSTITUTE(Workpackages!#REF!,\".\",\"##\")","v":{"$error":"#REF!"}},{"$f":"LEN(Workpackages!#REF!)","v":{"$error":"#REF!"}},{"$error":"#REF!"},{"$error":"#REF!"},{"$f":"REPT(\"    \",D137)&Workpackages!#REF!","v":{"$error":"#REF!"}}]
[{"$f":"SUBSTITUTE(Workpackages!#REF!,\".\",\"##\")","v":{"$error":"#REF!"}},{"$f":"LEN(Workpackages!#REF!)","v":{"$error":"#REF!"}},{"$error":"#REF!"},{"$error":"#REF!"},{"$f":"REPT(\"    \",D138)&Workpackages!#REF!","v":{"$error":"#REF!"}}]
[{"$f":"SUBSTITUTE(Workpackages!#REF!,\".\",\"##\")","v":{"$error":"#REF!"}},{"$f":"LEN(Workpackages!#REF!)","v":{"$error":"#REF!"}},{"$error":"#REF!"},{"$error":"#REF!"},{"$f":"REPT(\"    \",D139)&Workpackages!#REF!","v":{"$error":"#REF!"}}]
[{"$f":"SUBSTITUTE(Workpackages!#REF!,\".\",\"##\")","v":{"$error":"#REF!"}},{"$f":"LEN(Workpackages!#REF!)","v":{"$error":"#REF!"}},{"$error":"#REF!"},{"$error":"#REF!"},{"$f":"REPT(\"    \",D140)&Workpackages!#REF!","v":{"$error":"#REF!"}}]
[{"$f":"SUBSTITUTE(Workpackages!#REF!,\".\",\"##\")","v":{"$error":"#REF!"}},{"$f":"LEN(Workpackages!#REF!)","v":{"$error":"#REF!"}},{"$error":"#REF!"},{"$error":"#REF!"},{"$f":"REPT(\"    \",D141)&Workpackages!#REF!","v":{"$error":"#REF!"}}]
[{"$f":"SUBSTITUTE(Workpackages!#REF!,\".\",\"##\")","v":{"$error":"#REF!"}},{"$f":"LEN(Workpackages!#REF!)","v":{"$error":"#REF!"}},{"$error":"#REF!"},{"$error":"#REF!"},{"$f":"REPT(\"    \",D142)&Workpackages!#REF!","v":{"$error":"#REF!"}}]
[{"$f":"SUBSTITUTE(Workpackages!#REF!,\".\",\"##\")","v":{"$error":"#REF!"}},{"$f":"LEN(Workpackages!#REF!)","v":{"$error":"#REF!"}},{"$error":"#REF!"},{"$error":"#REF!"},{"$f":"REPT(\"    \",D143)&Workpackages!#REF!","v":{"$error":"#REF!"}}]
[{"$f":"SUBSTITUTE(Workpackages!#REF!,\".\",\"##\")","v":{"$error":"#REF!"}},{"$f":"LEN(Workpackages!#REF!)","v":{"$error":"#REF!"}},{"$error":"#REF!"},{"$error":"#REF!"},{"$f":"REPT(\"    \",D144)&Workpackages!#REF!","v":{"$error":"#REF!"}}]
[{"$f":"SUBSTITUTE(Workpackages!#REF!,\".\",\"##\")","v":{"$error":"#REF!"}},{"$f":"LEN(Workpackages!#REF!)","v":{"$error":"#REF!"}},{"$error":"#REF!"},{"$error":"#REF!"},{"$f":"REPT(\"    \",D145)&Workpackages!#REF!","v":{"$error":"#REF!"}}]
[{"$f":"SUBSTITUTE(Workpackages!#REF!,\".\",\"##\")","v":{"$error":"#REF!"}},{"$f":"LEN(Workpackages!#REF!)","v":{"$error":"#REF!"}},{"$error":"#REF!"},{"$error":"#REF!"},{"$f":"REPT(\"    \",D146)&Workpackages!#REF!","v":{"$error":"#REF!"}}]
[{"$f":"SUBSTITUTE(Workpackages!#REF!,\".\",\"##\")","v":{"$error":"#REF!"}},{"$f":"LEN(Workpackages!#REF!)","v":{"$error":"#REF!"}},{"$error":"#REF!"},{"$error":"#REF!"},{"$f":"REPT(\"    \",D147)&Workpackages!#REF!","v":{"$error":"#REF!"}}]
[{"$f":"SUBSTITUTE(Workpackages!#REF!,\".\",\"##\")","v":{"$error":"#REF!"}},{"$f":"LEN(Workpackages!#REF!)","v":{"$error":"#REF!"}},{"$error":"#REF!"},{"$error":"#REF!"},{"$f":"REPT(\"    \",D148)&Workpackages!#REF!","v":{"$error":"#REF!"}}]
[{"$f":"SUBSTITUTE(Workpackages!#REF!,\".\",\"##\")","v":{"$error":"#REF!"}},{"$f":"LEN(Workpackages!#REF!)","v":{"$error":"#REF!"}},{"$error":"#REF!"},{"$error":"#REF!"},{"$f":"REPT(\"    \",D149)&Workpackages!#REF!","v":{"$error":"#REF!"}}]
[{"$f":"SUBSTITUTE(Workpackages!#REF!,\".\",\"##\")","v":{"$error":"#REF!"}},{"$f":"LEN(Workpackages!#REF!)","v":{"$error":"#REF!"}},{"$error":"#REF!"},{"$error":"#REF!"},{"$f":"REPT(\"    \",D150)&Workpackages!#REF!","v":{"$error":"#REF!"}}]
[{"$f":"SUBSTITUTE(Workpackages!#REF!,\".\",\"##\")","v":{"$error":"#REF!"}},{"$f":"LEN(Workpackages!#REF!)","v":{"$error":"#REF!"}},{"$error":"#REF!"},{"$error":"#REF!"},{"$f":"REPT(\"    \",D151)&Workpackages!#REF!","v":{"$error":"#REF!"}}]
[{"$f":"SUBSTITUTE(Workpackages!#REF!,\".\",\"##\")","v":{"$error":"#REF!"}},{"$f":"LEN(Workpackages!#REF!)","v":{"$error":"#REF!"}},{"$f":"LEN(A152)","v":{"$error":"#REF!"}},{"$f":"C152-B152","v":{"$error":"#REF!"}},{"$f":"REPT(\"    \",D152)&Workpackages!#REF!","v":{"$error":"#REF!"}}]
[{"$f":"SUBSTITUTE(Workpackages!#REF!,\".\",\"##\")","v":{"$error":"#REF!"}},{"$f":"LEN(Workpackages!#REF!)","v":{"$error":"#REF!"}},{"$error":"#REF!"},{"$error":"#REF!"},{"$f":"REPT(\"    \",D153)&Workpackages!#REF!","v":{"$error":"#REF!"}}]
[{"$f":"SUBSTITUTE(Workpackages!#REF!,\".\",\"##\")","v":{"$error":"#REF!"}},{"$f":"LEN(Workpackages!#REF!)","v":{"$error":"#REF!"}},{"$error":"#REF!"},{"$error":"#REF!"},{"$f":"REPT(\"    \",D154)&Workpackages!#REF!","v":{"$error":"#REF!"}}]
[{"$f":"SUBSTITUTE(Workpackages!#REF!,\".\",\"##\")","v":{"$error":"#REF!"}},{"$f":"LEN(Workpackages!#REF!)","v":{"$error":"#REF!"}},{"$error":"#REF!"},{"$error":"#REF!"},{"$f":"REPT(\"    \",D155)&Workpackages!#REF!","v":{"$error":"#REF!"}}]
[{"$f":"SUBSTITUTE(Workpackages!#REF!,\".\",\"##\")","v":{"$error":"#REF!"}},{"$f":"LEN(Workpackages!#REF!)","v":{"$error":"#REF!"}},{"$error":"#REF!"},{"$error":"#REF!"},{"$f":"REPT(\"    \",D156)&Workpackages!#REF!","v":{"$error":"#REF!"}}]
[{"$f":"SUBSTITUTE(Workpackages!#REF!,\".\",\"##\")","v":{"$error":"#REF!"}},{"$f":"LEN(Workpackages!#REF!)","v":{"$error":"#REF!"}},{"$error":"#REF!"},{"$error":"#REF!"},{"$f":"REPT(\"    \",D157)&Workpackages!#REF!","v":{"$error":"#REF!"}}]
[{"$f":"SUBSTITUTE(Workpackages!#REF!,\".\",\"##\")","v":{"$error":"#REF!"}},{"$f":"LEN(Workpackages!#REF!)","v":{"$error":"#REF!"}},{"$error":"#REF!"},{"$error":"#REF!"},{"$f":"REPT(\"    \",D158)&Workpackages!#REF!","v":{"$error":"#REF!"}}]
[{"$f":"SUBSTITUTE(Workpackages!#REF!,\".\",\"##\")","v":{"$error":"#REF!"}},{"$f":"LEN(Workpackages!#REF!)","v":{"$error":"#REF!"}},{"$error":"#REF!"},{"$error":"#REF!"},{"$f":"REPT(\"    \",D159)&Workpackages!#REF!","v":{"$error":"#REF!"}}]
[{"$f":"SUBSTITUTE(Workpackages!#REF!,\".\",\"##\")","v":{"$error":"#REF!"}},{"$f":"LEN(Workpackages!#REF!)","v":{"$error":"#REF!"}},{"$error":"#REF!"},{"$error":"#REF!"},{"$f":"REPT(\"    \",D160)&Workpackages!#REF!","v":{"$error":"#REF!"}}]
[{"$f":"SUBSTITUTE(Workpackages!#REF!,\".\",\"##\")","v":{"$error":"#REF!"}},{"$f":"LEN(Workpackages!#REF!)","v":{"$error":"#REF!"}},{"$error":"#REF!"},{"$error":"#REF!"},{"$f":"REPT(\"    \",D161)&Workpackages!#REF!","v":{"$error":"#REF!"}}]
[{"$f":"SUBSTITUTE(Workpackages!#REF!,\".\",\"##\")","v":{"$error":"#REF!"}},{"$f":"LEN(Workpackages!#REF!)","v":{"$error":"#REF!"}},{"$error":"#REF!"},{"$error":"#REF!"},{"$f":"REPT(\"    \",D162)&Workpackages!#REF!","v":{"$error":"#REF!"}}]
[{"$f":"SUBSTITUTE(Workpackages!#REF!,\".\",\"##\")","v":{"$error":"#REF!"}},{"$f":"LEN(Workpackages!#REF!)","v":{"$error":"#REF!"}},{"$error":"#REF!"},{"$error":"#REF!"},{"$f":"REPT(\"    \",D163)&Workpackages!#REF!","v":{"$error":"#REF!"}}]
[{"$f":"SUBSTITUTE(Workpackages!#REF!,\".\",\"##\")","v":{"$error":"#REF!"}},{"$f":"LEN(Workpackages!#REF!)","v":{"$error":"#REF!"}},{"$error":"#REF!"},{"$error":"#REF!"},{"$f":"REPT(\"    \",D164)&Workpackages!#REF!","v":{"$error":"#REF!"}}]
[{"$f":"SUBSTITUTE(Workpackages!#REF!,\".\",\"##\")","v":{"$error":"#REF!"}},{"$f":"LEN(Workpackages!#REF!)","v":{"$error":"#REF!"}},{"$error":"#REF!"},{"$error":"#REF!"},{"$f":"REPT(\"    \",D165)&Workpackages!#REF!","v":{"$error":"#REF!"}}]
[{"$f":"SUBSTITUTE(Workpackages!#REF!,\".\",\"##\")","v":{"$error":"#REF!"}},{"$f":"LEN(Workpackages!#REF!)","v":{"$error":"#REF!"}},{"$error":"#REF!"},{"$error":"#REF!"},{"$f":"REPT(\"    \",D166)&Workpackages!#REF!","v":{"$error":"#REF!"}}]
[{"$f":"SUBSTITUTE(Workpackages!#REF!,\".\",\"##\")","v":{"$error":"#REF!"}},{"$f":"LEN(Workpackages!#REF!)","v":{"$error":"#REF!"}},{"$error":"#REF!"},{"$error":"#REF!"},{"$f":"REPT(\"    \",D167)&Workpackages!#REF!","v":{"$error":"#REF!"}}]
[{"$f":"SUBSTITUTE(Workpackages!#REF!,\".\",\"##\")","v":{"$error":"#REF!"}},{"$f":"LEN(Workpackages!#REF!)","v":{"$error":"#REF!"}},{"$error":"#REF!"},{"$error":"#REF!"},{"$f":"REPT(\"    \",D168)&Workpackages!#REF!","v":{"$error":"#REF!"}}]
[{"$f":"SUBSTITUTE(Workpackages!#REF!,\".\",\"##\")","v":{"$error":"#REF!"}},{"$f":"LEN(Workpackages!#REF!)","v":{"$error":"#REF!"}},{"$error":"#REF!"},{"$error":"#REF!"},{"$f":"REPT(\"    \",D169)&Workpackages!#REF!","v":{"$error":"#REF!"}}]
[{"$f":"SUBSTITUTE(Workpackages!#REF!,\".\",\"##\")","v":{"$error":"#REF!"}},{"$f":"LEN(Workpackages!#REF!)","v":{"$error":"#REF!"}},{"$error":"#REF!"},{"$error":"#REF!"},{"$f":"REPT(\"    \",D170)&Workpackages!#REF!","v":{"$error":"#REF!"}}]
[{"$f":"SUBSTITUTE(Workpackages!#REF!,\".\",\"##\")","v":{"$error":"#REF!"}},{"$f":"LEN(Workpackages!#REF!)","v":{"$error":"#REF!"}},{"$error":"#REF!"},{"$error":"#REF!"},{"$f":"REPT(\"    \",D171)&Workpackages!#REF!","v":{"$error":"#REF!"}}]
[{"$f":"SUBSTITUTE(Workpackages!#REF!,\".\",\"##\")","v":{"$error":"#REF!"}},{"$f":"LEN(Workpackages!#REF!)","v":{"$error":"#REF!"}},{"$error":"#REF!"},{"$error":"#REF!"},{"$f":"REPT(\"    \",D172)&Workpackages!#REF!","v":{"$error":"#REF!"}}]
[{"$f":"SUBSTITUTE(Workpackages!#REF!,\".\",\"##\")","v":{"$error":"#REF!"}},{"$f":"LEN(Workpackages!#REF!)","v":{"$error":"#REF!"}},{"$error":"#REF!"},{"$error":"#REF!"},{"$f":"REPT(\"    \",D173)&Workpackages!#REF!","v":{"$error":"#REF!"}}]
[{"$f":"SUBSTITUTE(Workpackages!#REF!,\".\",\"##\")","v":{"$error":"#REF!"}},{"$f":"LEN(Workpackages!#REF!)","v":{"$error":"#REF!"}},{"$error":"#REF!"},{"$error":"#REF!"},{"$f":"REPT(\"    \",D174)&Workpackages!#REF!","v":{"$error":"#REF!"}}]
[{"$f":"SUBSTITUTE(Workpackages!#REF!,\".\",\"##\")","v":{"$error":"#REF!"}},{"$f":"LEN(Workpackages!#REF!)","v":{"$error":"#REF!"}},{"$error":"#REF!"},{"$error":"#REF!"},{"$f":"REPT(\"    \",D175)&Workpackages!#REF!","v":{"$error":"#REF!"}}]
[{"$f":"SUBSTITUTE(Workpackages!#REF!,\".\",\"##\")","v":{"$error":"#REF!"}},{"$f":"LEN(Workpackages!#REF!)","v":{"$error":"#REF!"}},{"$error":"#REF!"},{"$error":"#REF!"},{"$f":"REPT(\"    \",D176)&Workpackages!#REF!","v":{"$error":"#REF!"}}]
[{"$f":"SUBSTITUTE(Workpackages!#REF!,\".\",\"##\")","v":{"$error":"#REF!"}},{"$f":"LEN(Workpackages!#REF!)","v":{"$error":"#REF!"}},{"$error":"#REF!"},{"$error":"#REF!"},{"$f":"REPT(\"    \",D177)&Workpackages!#REF!","v":{"$error":"#REF!"}}]
[{"$f":"SUBSTITUTE(Workpackages!#REF!,\".\",\"##\")","v":{"$error":"#REF!"}},{"$f":"LEN(Workpackages!#REF!)","v":{"$error":"#REF!"}},{"$error":"#REF!"},{"$error":"#REF!"},{"$f":"REPT(\"    \",D178)&Workpackages!#REF!","v":{"$error":"#REF!"}}]
[{"$f":"SUBSTITUTE(Workpackages!#REF!,\".\",\"##\")","v":{"$error":"#REF!"}},{"$f":"LEN(Workpackages!#REF!)","v":{"$error":"#REF!"}},{"$error":"#REF!"},{"$error":"#REF!"},{"$f":"REPT(\"    \",D179)&Workpackages!#REF!","v":{"$error":"#REF!"}}]
[{"$f":"SUBSTITUTE(Workpackages!#REF!,\".\",\"##\")","v":{"$error":"#REF!"}},{"$f":"LEN(Workpackages!#REF!)","v":{"$error":"#REF!"}},{"$error":"#REF!"},{"$error":"#REF!"},{"$f":"REPT(\"    \",D180)&Workpackages!#REF!","v":{"$error":"#REF!"}}]
[{"$f":"SUBSTITUTE(Workpackages!#REF!,\".\",\"##\")","v":{"$error":"#REF!"}},{"$f":"LEN(Workpackages!#REF!)","v":{"$error":"#REF!"}},{"$error":"#REF!"},{"$error":"#REF!"},{"$f":"REPT(\"    \",D181)&Workpackages!#REF!","v":{"$error":"#REF!"}}]
[{"$f":"SUBSTITUTE(Workpackages!#REF!,\".\",\"##\")","v":{"$error":"#REF!"}},{"$f":"LEN(Workpackages!#REF!)","v":{"$error":"#REF!"}},{"$error":"#REF!"},{"$error":"#REF!"},{"$f":"REPT(\"    \",D182)&Workpackages!#REF!","v":{"$error":"#REF!"}}]
[{"$f":"SUBSTITUTE(Workpackages!#REF!,\".\",\"##\")","v":{"$error":"#REF!"}},{"$f":"LEN(Workpackages!#REF!)","v":{"$error":"#REF!"}},{"$error":"#REF!"},{"$error":"#REF!"},{"$f":"REPT(\"    \",D183)&Workpackages!#REF!","v":{"$error":"#REF!"}}]
[{"$f":"SUBSTITUTE(Workpackages!#REF!,\".\",\"##\")","v":{"$error":"#REF!"}},{"$f":"LEN(Workpackages!#REF!)","v":{"$error":"#REF!"}},{"$error":"#REF!"},{"$error":"#REF!"},{"$f":"REPT(\"    \",D184)&Workpackages!#REF!","v":{"$error":"#REF!"}}]
[{"$f":"SUBSTITUTE(Workpackages!#REF!,\".\",\"##\")","v":{"$error":"#REF!"}},{"$f":"LEN(Workpackages!#REF!)","v":{"$error":"#REF!"}},{"$error":"#REF!"},{"$error":"#REF!"},{"$f":"REPT(\"    \",D185)&Workpackages!#REF!","v":{"$error":"#REF!"}}]
[{"$f":"SUBSTITUTE(Workpackages!#REF!,\".\",\"##\")","v":{"$error":"#REF!"}},{"$f":"LEN(Workpackages!#REF!)","v":{"$error":"#REF!"}},{"$error":"#REF!"},{"$error":"#REF!"},{"$f":"REPT(\"    \",D186)&Workpackages!#REF!","v":{"$error":"#REF!"}}]
[{"$f":"SUBSTITUTE(Workpackages!#REF!,\".\",\"##\")","v":{"$error":"#REF!"}},{"$f":"LEN(Workpackages!#REF!)","v":{"$error":"#REF!"}},{"$error":"#REF!"},{"$error":"#REF!"},{"$f":"REPT(\"    \",D187)&Workpackages!#REF!","v":{"$error":"#REF!"}}]
[{"$f":"SUBSTITUTE(Workpackages!#REF!,\".\",\"##\")","v":{"$error":"#REF!"}},{"$f":"LEN(Workpackages!#REF!)","v":{"$error":"#REF!"}},{"$error":"#REF!"},{"$error":"#REF!"},{"$f":"REPT(\"    \",D188)&Workpackages!#REF!","v":{"$error":"#REF!"}}]
[{"$f":"SUBSTITUTE(Workpackages!#REF!,\".\",\"##\")","v":{"$error":"#REF!"}},{"$f":"LEN(Workpackages!#REF!)","v":{"$error":"#REF!"}},{"$error":"#REF!"},{"$error":"#REF!"},{"$f":"REPT(\"    \",D189)&Workpackages!#REF!","v":{"$error":"#REF!"}}]
[{"$f":"SUBSTITUTE(Workpackages!#REF!,\".\",\"##\")","v":{"$error":"#REF!"}},{"$f":"LEN(Workpackages!#REF!)","v":{"$error":"#REF!"}},{"$error":"#REF!"},{"$error":"#REF!"},{"$f":"REPT(\"    \",D190)&Workpackages!#REF!","v":{"$error":"#REF!"}}]
[{"$f":"SUBSTITUTE(Workpackages!#REF!,\".\",\"##\")","v":{"$error":"#REF!"}},{"$f":"LEN(Workpackages!#REF!)","v":{"$error":"#REF!"}},{"$error":"#REF!"},{"$error":"#REF!"},{"$f":"REPT(\"    \",D191)&Workpackages!#REF!","v":{"$error":"#REF!"}}]
[{"$f":"SUBSTITUTE(Workpackages!#REF!,\".\",\"##\")","v":{"$error":"#REF!"}},{"$f":"LEN(Workpackages!#REF!)","v":{"$error":"#REF!"}},{"$error":"#REF!"},{"$error":"#REF!"},{"$f":"REPT(\"    \",D192)&Workpackages!#REF!","v":{"$error":"#REF!"}}]
[{"$f":"SUBSTITUTE(Workpackages!#REF!,\".\",\"##\")","v":{"$error":"#REF!"}},{"$f":"LEN(Workpackages!#REF!)","v":{"$error":"#REF!"}},{"$error":"#REF!"},{"$error":"#REF!"},{"$f":"REPT(\"    \",D193)&Workpackages!#REF!","v":{"$error":"#REF!"}}]
[{"$f":"SUBSTITUTE(Workpackages!#REF!,\".\",\"##\")","v":{"$error":"#REF!"}},{"$f":"LEN(Workpackages!#REF!)","v":{"$error":"#REF!"}},{"$error":"#REF!"},{"$error":"#REF!"},{"$f":"REPT(\"    \",D194)&Workpackages!#REF!","v":{"$error":"#REF!"}}]
[{"$f":"SUBSTITUTE(Workpackages!#REF!,\".\",\"##\")","v":{"$error":"#REF!"}},{"$f":"LEN(Workpackages!#REF!)","v":{"$error":"#REF!"}},{"$error":"#REF!"},{"$error":"#REF!"},{"$f":"REPT(\"    \",D195)&Workpackages!#REF!","v":{"$error":"#REF!"}}]
[{"$f":"SUBSTITUTE(Workpackages!#REF!,\".\",\"##\")","v":{"$error":"#REF!"}},{"$f":"LEN(Workpackages!#REF!)","v":{"$error":"#REF!"}},{"$error":"#REF!"},{"$error":"#REF!"},{"$f":"REPT(\"    \",D196)&Workpackages!#REF!","v":{"$error":"#REF!"}}]
[{"$f":"SUBSTITUTE(Workpackages!#REF!,\".\",\"##\")","v":{"$error":"#REF!"}},{"$f":"LEN(Workpackages!#REF!)","v":{"$error":"#REF!"}},{"$error":"#REF!"},{"$error":"#REF!"},{"$f":"REPT(\"    \",D197)&Workpackages!#REF!","v":{"$error":"#REF!"}}]
[{"$f":"SUBSTITUTE(Workpackages!#REF!,\".\",\"##\")","v":{"$error":"#REF!"}},{"$f":"LEN(Workpackages!#REF!)","v":{"$error":"#REF!"}},{"$error":"#REF!"},{"$error":"#REF!"},{"$f":"REPT(\"    \",D198)&Workpackages!#REF!","v":{"$error":"#REF!"}}]
[{"$f":"SUBSTITUTE(Workpackages!#REF!,\".\",\"##\")","v":{"$error":"#REF!"}},{"$f":"LEN(Workpackages!#REF!)","v":{"$error":"#REF!"}},{"$error":"#REF!"},{"$error":"#REF!"},{"$f":"REPT(\"    \",D199)&Workpackages!#REF!","v":{"$error":"#REF!"}}]
[{"$f":"SUBSTITUTE(Workpackages!#REF!,\".\",\"##\")","v":{"$error":"#REF!"}},{"$f":"LEN(Workpackages!#REF!)","v":{"$error":"#REF!"}},{"$error":"#REF!"},{"$error":"#REF!"},{"$f":"REPT(\"    \",D200)&Workpackages!#REF!","v":{"$error":"#REF!"}}]
[{"$f":"SUBSTITUTE(Workpackages!#REF!,\".\",\"##\")","v":{"$error":"#REF!"}},{"$f":"LEN(Workpackages!#REF!)","v":{"$error":"#REF!"}},{"$error":"#REF!"},{"$error":"#REF!"},{"$f":"REPT(\"    \",D201)&Workpackages!#REF!","v":{"$error":"#REF!"}}]
[{"$f":"SUBSTITUTE(Workpackages!#REF!,\".\",\"##\")","v":{"$error":"#REF!"}},{"$f":"LEN(Workpackages!#REF!)","v":{"$error":"#REF!"}},{"$error":"#REF!"},{"$error":"#REF!"},{"$f":"REPT(\"    \",D202)&Workpackages!#REF!","v":{"$error":"#REF!"}}]
[{"$f":"SUBSTITUTE(Workpackages!#REF!,\".\",\"##\")","v":{"$error":"#REF!"}},{"$f":"LEN(Workpackages!#REF!)","v":{"$error":"#REF!"}},{"$error":"#REF!"},{"$error":"#REF!"},{"$f":"REPT(\"    \",D203)&Workpackages!#REF!","v":{"$error":"#REF!"}}]
[{"$f":"SUBSTITUTE(Workpackages!#REF!,\".\",\"##\")","v":{"$error":"#REF!"}},{"$f":"LEN(Workpackages!#REF!)","v":{"$error":"#REF!"}},{"$error":"#REF!"},{"$error":"#REF!"},{"$f":"REPT(\"    \",D204)&Workpackages!#REF!","v":{"$error":"#REF!"}}]
[{"$f":"SUBSTITUTE(Workpackages!#REF!,\".\",\"##\")","v":{"$error":"#REF!"}},{"$f":"LEN(Workpackages!#REF!)","v":{"$error":"#REF!"}},{"$error":"#REF!"},{"$error":"#REF!"},{"$f":"REPT(\"    \",D205)&Workpackages!#REF!","v":{"$error":"#REF!"}}]
[{"$f":"SUBSTITUTE(Workpackages!#REF!,\".\",\"##\")","v":{"$error":"#REF!"}},{"$f":"LEN(Workpackages!#REF!)","v":{"$error":"#REF!"}},{"$error":"#REF!"},{"$error":"#REF!"},{"$f":"REPT(\"    \",D206)&Workpackages!#REF!","v":{"$error":"#REF!"}}]
[{"$f":"SUBSTITUTE(Workpackages!#REF!,\".\",\"##\")","v":{"$error":"#REF!"}},{"$f":"LEN(Workpackages!#REF!)","v":{"$error":"#REF!"}},{"$error":"#REF!"},{"$error":"#REF!"},{"$f":"REPT(\"    \",D207)&Workpackages!#REF!","v":{"$error":"#REF!"}}]
[{"$f":"SUBSTITUTE(Workpackages!#REF!,\".\",\"##\")","v":{"$error":"#REF!"}},{"$f":"LEN(Workpackages!#REF!)","v":{"$error":"#REF!"}},{"$error":"#REF!"},{"$error":"#REF!"},{"$f":"REPT(\"    \",D208)&Workpackages!#REF!","v":{"$error":"#REF!"}}]
[{"$f":"SUBSTITUTE(Workpackages!#REF!,\".\",\"##\")","v":{"$error":"#REF!"}},{"$f":"LEN(Workpackages!#REF!)","v":{"$error":"#REF!"}},{"$error":"#REF!"},{"$error":"#REF!"},{"$f":"REPT(\"    \",D209)&Workpackages!#REF!","v":{"$error":"#REF!"}}]
[{"$f":"SUBSTITUTE(Workpackages!#REF!,\".\",\"##\")","v":{"$error":"#REF!"}},{"$f":"LEN(Workpackages!#REF!)","v":{"$error":"#REF!"}},{"$error":"#REF!"},{"$error":"#REF!"},{"$f":"REPT(\"    \",D210)&Workpackages!#REF!","v":{"$error":"#REF!"}}]
[{"$f":"SUBSTITUTE(Workpackages!#REF!,\".\",\"##\")","v":{"$error":"#REF!"}},{"$f":"LEN(Workpackages!#REF!)","v":{"$error":"#REF!"}},{"$error":"#REF!"},{"$error":"#REF!"},{"$f":"REPT(\"    \",D211)&Workpackages!#REF!","v":{"$error":"#REF!"}}]
[{"$f":"SUBSTITUTE(Workpackages!#REF!,\".\",\"##\")","v":{"$error":"#REF!"}},{"$f":"LEN(Workpackages!#REF!)","v":{"$error":"#REF!"}},{"$error":"#REF!"},{"$error":"#REF!"},{"$f":"REPT(\"    \",D212)&Workpackages!#REF!","v":{"$error":"#REF!"}}]
[{"$f":"SUBSTITUTE(Workpackages!#REF!,\".\",\"##\")","v":{"$error":"#REF!"}},{"$f":"LEN(Workpackages!#REF!)","v":{"$error":"#REF!"}},{"$error":"#REF!"},{"$error":"#REF!"},{"$f":"REPT(\"    \",D213)&Workpackages!#REF!","v":{"$error":"#REF!"}}]
[{"$f":"SUBSTITUTE(Workpackages!#REF!,\".\",\"##\")","v":{"$error":"#REF!"}},{"$f":"LEN(Workpackages!#REF!)","v":{"$error":"#REF!"}},{"$error":"#REF!"},{"$error":"#REF!"},{"$f":"REPT(\"    \",D214)&Workpackages!#REF!","v":{"$error":"#REF!"}}]
[{"$f":"SUBSTITUTE(Workpackages!#REF!,\".\",\"##\")","v":{"$error":"#REF!"}},{"$f":"LEN(Workpackages!#REF!)","v":{"$error":"#REF!"}},{"$error":"#REF!"},{"$error":"#REF!"},{"$f":"REPT(\"    \",D215)&Workpackages!#REF!","v":{"$error":"#REF!"}}]
[{"$f":"SUBSTITUTE(Workpackages!#REF!,\".\",\"##\")","v":{"$error":"#REF!"}},{"$f":"LEN(Workpackages!#REF!)","v":{"$error":"#REF!"}},{"$f":"LEN(A216)","v":{"$error":"#REF!"}},{"$f":"C216-B216","v":{"$error":"#REF!"}},{"$f":"REPT(\"    \",D216)&Workpackages!#REF!","v":{"$error":"#REF!"}}]
[{"$f":"SUBSTITUTE(Workpackages!#REF!,\".\",\"##\")","v":{"$error":"#REF!"}},{"$f":"LEN(Workpackages!#REF!)","v":{"$error":"#REF!"}},{"$error":"#REF!"},{"$error":"#REF!"},{"$f":"REPT(\"    \",D217)&Workpackages!#REF!","v":{"$error":"#REF!"}}]
[{"$f":"SUBSTITUTE(Workpackages!#REF!,\".\",\"##\")","v":{"$error":"#REF!"}},{"$f":"LEN(Workpackages!#REF!)","v":{"$error":"#REF!"}},{"$error":"#REF!"},{"$error":"#REF!"},{"$f":"REPT(\"    \",D218)&Workpackages!#REF!","v":{"$error":"#REF!"}}]
[{"$f":"SUBSTITUTE(Workpackages!#REF!,\".\",\"##\")","v":{"$error":"#REF!"}},{"$f":"LEN(Workpackages!#REF!)","v":{"$error":"#REF!"}},{"$error":"#REF!"},{"$error":"#REF!"},{"$f":"REPT(\"    \",D219)&Workpackages!#REF!","v":{"$error":"#REF!"}}]
[{"$f":"SUBSTITUTE(Workpackages!#REF!,\".\",\"##\")","v":{"$error":"#REF!"}},{"$f":"LEN(Workpackages!#REF!)","v":{"$error":"#REF!"}},{"$error":"#REF!"},{"$error":"#REF!"},{"$f":"REPT(\"    \",D220)&Workpackages!#REF!","v":{"$error":"#REF!"}}]
[{"$f":"SUBSTITUTE(Workpackages!#REF!,\".\",\"##\")","v":{"$error":"#REF!"}},{"$f":"LEN(Workpackages!#REF!)","v":{"$error":"#REF!"}},{"$error":"#REF!"},{"$error":"#REF!"},{"$f":"REPT(\"    \",D221)&Workpackages!#REF!","v":{"$error":"#REF!"}}]
[{"$f":"SUBSTITUTE(Workpackages!#REF!,\".\",\"##\")","v":{"$error":"#REF!"}},{"$f":"LEN(Workpackages!#REF!)","v":{"$error":"#REF!"}},{"$error":"#REF!"},{"$error":"#REF!"},{"$f":"REPT(\"    \",D222)&Workpackages!#REF!","v":{"$error":"#REF!"}}]
[{"$f":"SUBSTITUTE(Workpackages!#REF!,\".\",\"##\")","v":{"$error":"#REF!"}},{"$f":"LEN(Workpackages!#REF!)","v":{"$error":"#REF!"}},{"$error":"#REF!"},{"$error":"#REF!"},{"$f":"REPT(\"    \",D223)&Workpackages!#REF!","v":{"$error":"#REF!"}}]
[{"$f":"SUBSTITUTE(Workpackages!#REF!,\".\",\"##\")","v":{"$error":"#REF!"}},{"$f":"LEN(Workpackages!#REF!)","v":{"$error":"#REF!"}},{"$error":"#REF!"},{"$error":"#REF!"},{"$f":"REPT(\"    \",D224)&Workpackages!#REF!","v":{"$error":"#REF!"}}]
[{"$f":"SUBSTITUTE(Workpackages!#REF!,\".\",\"##\")","v":{"$error":"#REF!"}},{"$f":"LEN(Workpackages!#REF!)","v":{"$error":"#REF!"}},{"$error":"#REF!"},{"$error":"#REF!"},{"$f":"REPT(\"    \",D225)&Workpackages!#REF!","v":{"$error":"#REF!"}}]
[{"$f":"SUBSTITUTE(Workpackages!#REF!,\".\",\"##\")","v":{"$error":"#REF!"}},{"$f":"LEN(Workpackages!#REF!)","v":{"$error":"#REF!"}},{"$error":"#REF!"},{"$error":"#REF!"},{"$f":"REPT(\"    \",D226)&Workpackages!#REF!","v":{"$error":"#REF!"}}]
[{"$f":"SUBSTITUTE(Workpackages!#REF!,\".\",\"##\")","v":{"$error":"#REF!"}},{"$f":"LEN(Workpackages!#REF!)","v":{"$error":"#REF!"}},{"$error":"#REF!"},{"$error":"#REF!"},{"$f":"REPT(\"    \",D227)&Workpackages!#REF!","v":{"$error":"#REF!"}}]
[{"$f":"SUBSTITUTE(Workpackages!#REF!,\".\",\"##\")","v":{"$error":"#REF!"}},{"$f":"LEN(Workpackages!#REF!)","v":{"$error":"#REF!"}},{"$error":"#REF!"},{"$error":"#REF!"},{"$f":"REPT(\"    \",D228)&Workpackages!#REF!","v":{"$error":"#REF!"}}]
[{"$f":"SUBSTITUTE(Workpackages!#REF!,\".\",\"##\")","v":{"$error":"#REF!"}},{"$f":"LEN(Workpackages!#REF!)","v":{"$error":"#REF!"}},{"$error":"#REF!"},{"$error":"#REF!"},{"$f":"REPT(\"    \",D229)&Workpackages!#REF!","v":{"$error":"#REF!"}}]
[{"$f":"SUBSTITUTE(Workpackages!#REF!,\".\",\"##\")","v":{"$error":"#REF!"}},{"$f":"LEN(Workpackages!#REF!)","v":{"$error":"#REF!"}},{"$error":"#REF!"},{"$error":"#REF!"},{"$f":"REPT(\"    \",D230)&Workpackages!#REF!","v":{"$error":"#REF!"}}]
[{"$f":"SUBSTITUTE(Workpackages!#REF!,\".\",\"##\")","v":{"$error":"#REF!"}},{"$f":"LEN(Workpackages!#REF!)","v":{"$error":"#REF!"}},{"$error":"#REF!"},{"$error":"#REF!"},{"$f":"REPT(\"    \",D231)&Workpackages!#REF!","v":{"$error":"#REF!"}}]
[{"$f":"SUBSTITUTE(Workpackages!#REF!,\".\",\"##\")","v":{"$error":"#REF!"}},{"$f":"LEN(Workpackages!#REF!)","v":{"$error":"#REF!"}},{"$error":"#REF!"},{"$error":"#REF!"},{"$f":"REPT(\"    \",D232)&Workpackages!#REF!","v":{"$error":"#REF!"}}]
[{"$f":"SUBSTITUTE(Workpackages!#REF!,\".\",\"##\")","v":{"$error":"#REF!"}},{"$f":"LEN(Workpackages!#REF!)","v":{"$error":"#REF!"}},{"$error":"#REF!"},{"$error":"#REF!"},{"$f":"REPT(\"    \",D233)&Workpackages!#REF!","v":{"$error":"#REF!"}}]
[{"$f":"SUBSTITUTE(Workpackages!#REF!,\".\",\"##\")","v":{"$error":"#REF!"}},{"$f":"LEN(Workpackages!#REF!)","v":{"$error":"#REF!"}},{"$error":"#REF!"},{"$error":"#REF!"},{"$f":"REPT(\"    \",D234)&Workpackages!#REF!","v":{"$error":"#REF!"}}]
[{"$f":"SUBSTITUTE(Workpackages!#REF!,\".\",\"##\")","v":{"$error":"#REF!"}},{"$f":"LEN(Workpackages!#REF!)","v":{"$error":"#REF!"}},{"$error":"#REF!"},{"$error":"#REF!"},{"$f":"REPT(\"    \",D235)&Workpackages!#REF!","v":{"$error":"#REF!"}}]
[{"$f":"SUBSTITUTE(Workpackages!#REF!,\".\",\"##\")","v":{"$error":"#REF!"}},{"$f":"LEN(Workpackages!#REF!)","v":{"$error":"#REF!"}},{"$error":"#REF!"},{"$error":"#REF!"},{"$f":"REPT(\"    \",D236)&Workpackages!#REF!","v":{"$error":"#REF!"}}]
[{"$f":"SUBSTITUTE(Workpackages!#REF!,\".\",\"##\")","v":{"$error":"#REF!"}},{"$f":"LEN(Workpackages!#REF!)","v":{"$error":"#REF!"}},{"$error":"#REF!"},{"$error":"#REF!"},{"$f":"REPT(\"    \",D237)&Workpackages!#REF!","v":{"$error":"#REF!"}}]
[{"$f":"SUBSTITUTE(Workpackages!#REF!,\".\",\"##\")","v":{"$error":"#REF!"}},{"$f":"LEN(Workpackages!#REF!)","v":{"$error":"#REF!"}},{"$error":"#REF!"},{"$error":"#REF!"},{"$f":"REPT(\"    \",D238)&Workpackages!#REF!","v":{"$error":"#REF!"}}]
[{"$f":"SUBSTITUTE(Workpackages!#REF!,\".\",\"##\")","v":{"$error":"#REF!"}},{"$f":"LEN(Workpackages!#REF!)","v":{"$error":"#REF!"}},{"$error":"#REF!"},{"$error":"#REF!"},{"$f":"REPT(\"    \",D239)&Workpackages!#REF!","v":{"$error":"#REF!"}}]
[{"$f":"SUBSTITUTE(Workpackages!#REF!,\".\",\"##\")","v":{"$error":"#REF!"}},{"$f":"LEN(Workpackages!#REF!)","v":{"$error":"#REF!"}},{"$error":"#REF!"},{"$error":"#REF!"},{"$f":"REPT(\"    \",D240)&Workpackages!#REF!","v":{"$error":"#REF!"}}]
[{"$f":"SUBSTITUTE(Workpackages!#REF!,\".\",\"##\")","v":{"$error":"#REF!"}},{"$f":"LEN(Workpackages!#REF!)","v":{"$error":"#REF!"}},{"$error":"#REF!"},{"$error":"#REF!"},{"$f":"REPT(\"    \",D241)&Workpackages!#REF!","v":{"$error":"#REF!"}}]
[{"$f":"SUBSTITUTE(Workpackages!#REF!,\".\",\"##\")","v":{"$error":"#REF!"}},{"$f":"LEN(Workpackages!#REF!)","v":{"$error":"#REF!"}},{"$error":"#REF!"},{"$error":"#REF!"},{"$f":"REPT(\"    \",D242)&Workpackages!#REF!","v":{"$error":"#REF!"}}]
[{"$f":"SUBSTITUTE(Workpackages!#REF!,\".\",\"##\")","v":{"$error":"#REF!"}},{"$f":"LEN(Workpackages!#REF!)","v":{"$error":"#REF!"}},{"$error":"#REF!"},{"$error":"#REF!"},{"$f":"REPT(\"    \",D243)&Workpackages!#REF!","v":{"$error":"#REF!"}}]
[{"$f":"SUBSTITUTE(Workpackages!#REF!,\".\",\"##\")","v":{"$error":"#REF!"}},{"$f":"LEN(Workpackages!#REF!)","v":{"$error":"#REF!"}},{"$error":"#REF!"},{"$error":"#REF!"},{"$f":"REPT(\"    \",D244)&Workpackages!#REF!","v":{"$error":"#REF!"}}]
[{"$f":"SUBSTITUTE(Workpackages!#REF!,\".\",\"##\")","v":{"$error":"#REF!"}},{"$f":"LEN(Workpackages!#REF!)","v":{"$error":"#REF!"}},{"$error":"#REF!"},{"$error":"#REF!"},{"$f":"REPT(\"    \",D245)&Workpackages!#REF!","v":{"$error":"#REF!"}}]
[{"$f":"SUBSTITUTE(Workpackages!#REF!,\".\",\"##\")","v":{"$error":"#REF!"}},{"$f":"LEN(Workpackages!#REF!)","v":{"$error":"#REF!"}},{"$error":"#REF!"},{"$error":"#REF!"},{"$f":"REPT(\"    \",D246)&Workpackages!#REF!","v":{"$error":"#REF!"}}]
[{"$f":"SUBSTITUTE(Workpackages!#REF!,\".\",\"##\")","v":{"$error":"#REF!"}},{"$f":"LEN(Workpackages!#REF!)","v":{"$error":"#REF!"}},{"$error":"#REF!"},{"$error":"#REF!"},{"$f":"REPT(\"    \",D247)&Workpackages!#REF!","v":{"$error":"#REF!"}}]
[{"$f":"SUBSTITUTE(Workpackages!#REF!,\".\",\"##\")","v":{"$error":"#REF!"}},{"$f":"LEN(Workpackages!#REF!)","v":{"$error":"#REF!"}},{"$error":"#REF!"},{"$error":"#REF!"},{"$f":"REPT(\"    \",D248)&Workpackages!#REF!","v":{"$error":"#REF!"}}]
[{"$f":"SUBSTITUTE(Workpackages!#REF!,\".\",\"##\")","v":{"$error":"#REF!"}},{"$f":"LEN(Workpackages!#REF!)","v":{"$error":"#REF!"}},{"$error":"#REF!"},{"$error":"#REF!"},{"$f":"REPT(\"    \",D249)&Workpackages!#REF!","v":{"$error":"#REF!"}}]
[{"$f":"SUBSTITUTE(Workpackages!#REF!,\".\",\"##\")","v":{"$error":"#REF!"}},{"$f":"LEN(Workpackages!#REF!)","v":{"$error":"#REF!"}},{"$error":"#REF!"},{"$error":"#REF!"},{"$f":"REPT(\"    \",D250)&Workpackages!#REF!","v":{"$error":"#REF!"}}]
[{"$f":"SUBSTITUTE(Workpackages!#REF!,\".\",\"##\")","v":{"$error":"#REF!"}},{"$f":"LEN(Workpackages!#REF!)","v":{"$error":"#REF!"}},{"$error":"#REF!"},{"$error":"#REF!"},{"$f":"REPT(\"    \",D251)&Workpackages!#REF!","v":{"$error":"#REF!"}}]
[{"$f":"SUBSTITUTE(Workpackages!#REF!,\".\",\"##\")","v":{"$error":"#REF!"}},{"$f":"LEN(Workpackages!#REF!)","v":{"$error":"#REF!"}},{"$error":"#REF!"},{"$error":"#REF!"},{"$f":"REPT(\"    \",D252)&Workpackages!#REF!","v":{"$error":"#REF!"}}]
[{"$f":"SUBSTITUTE(Workpackages!#REF!,\".\",\"##\")","v":{"$error":"#REF!"}},{"$f":"LEN(Workpackages!#REF!)","v":{"$error":"#REF!"}},{"$error":"#REF!"},{"$error":"#REF!"},{"$f":"REPT(\"    \",D253)&Workpackages!#REF!","v":{"$error":"#REF!"}}]
[{"$f":"SUBSTITUTE(Workpackages!#REF!,\".\",\"##\")","v":{"$error":"#REF!"}},{"$f":"LEN(Workpackages!#REF!)","v":{"$error":"#REF!"}},{"$error":"#REF!"},{"$error":"#REF!"},{"$f":"REPT(\"    \",D254)&Workpackages!#REF!","v":{"$error":"#REF!"}}]
[{"$f":"SUBSTITUTE(Workpackages!#REF!,\".\",\"##\")","v":{"$error":"#REF!"}},{"$f":"LEN(Workpackages!#REF!)","v":{"$error":"#REF!"}},{"$error":"#REF!"},{"$error":"#REF!"},{"$f":"REPT(\"    \",D255)&Workpackages!#REF!","v":{"$error":"#REF!"}}]
[{"$f":"SUBSTITUTE(Workpackages!#REF!,\".\",\"##\")","v":{"$error":"#REF!"}},{"$f":"LEN(Workpackages!#REF!)","v":{"$error":"#REF!"}},{"$error":"#REF!"},{"$error":"#REF!"},{"$f":"REPT(\"    \",D256)&Workpackages!#REF!","v":{"$error":"#REF!"}}]

{"sheet":"Projects","index":2,"n_rows":2,"n_cols":3,"rows_kept":2,"hidden":true}
["ID","Identifier","Name"]
[80,"risa-template-scrum","00 Risa Template SCRUM"]

{"sheet":"Attributes","index":3,"n_rows":45,"n_cols":78,"rows_kept":45,"hidden":true}
["Name","Label","Typ","JSON","Options"]
[null,"Updatestatus"]
["lockVersion","Lock Version","Integer","{\"type\":\"Integer\",\"name\":\"Lock Version\",\"required\":true,\"hasDefault\":false,\"writable\":false,\"options\":{}}"]
["id","ID","Integer","{\"type\":\"Integer\",\"name\":\"ID\",\"required\":true,\"hasDefault\":false,\"writable\":false,\"options\":{}}"]
["subject","Subject","String","{\"type\":\"String\",\"name\":\"Subject\",\"required\":true,\"hasDefault\":false,\"writable\":true,\"minLength\":1,\"maxLength\":255,\"options\":{}}"]
["description","Description","Formattable","{\"type\":\"Formattable\",\"name\":\"Description\",\"required\":false,\"hasDefault\":false,\"writable\":true,\"options\":{}}"]
["responsible","Accountable","User","{\"type\":\"User\",\"name\":\"Accountable\",\"required\":false,\"hasDefault\":false,\"writable\":true,\"attributeGroup\":\"People\",\"_links\":{\"allowedValues\":{\"1\":{\"href\":\"/api/v3/groups/112\",\"title\":\"External-AtacsProjects\"},\"2\":{\"href\":\"/api/v3/groups/85\",\"title\":\"Risa-CEO-Management\"},\"3\":{\"href\":\"/api/v3/groups/105\",\"title\":\"RISA-Cyber Security\"},\"4\":{\"href\":\"/api/v3/groups/13\",\"title\":\"RISA-GCINO-Enterprise arch.\"},\"5\":{\"href\":\"/api/v3/groups/65\",\"title\":\"RISA-GCINO-Innovation\"},\"6\":{\"href\":\"/api/v3/groups/30\",\"title\":\"RISA-GCINO-Management\"},\"7\":{\"href\":\"/api/v3/groups/12\",\"title\":\"RISA-GCINO-Software solutions\"},\"8\":{\"href\":\"/api/v3/groups/92\",\"title\":\"Risa-GCIO Cluster coordination\"},\"9\":{\"href\":\"/api/v3/groups/41\",\"title\":\"RISA-GCIO-Infrastructure\"},\"10\":{\"href\":\"/api/v3/groups/83\",\"title\":\"Risa-GCIO-Management\"},\"11\":{\"href\":\"/api/v3/users/97\",\"title\":\"Aimable Muderi\"},\"12\":{\"href\":\"/api/v3/users/67\",\"title\":\"Alain Kamanzi\"},\"13\":{\"href\":\"/api/v3/users/106\",\"title\":\"Alfred Ntaganda\"},\"14\":{\"href\":\"/api/v3/users/42\",\"title\":\"Alphonse Zigira\"},\"15\":{\"href\":\"/api/v3/users/111\",\"title\":\"Ange Muhimundu\"},\"16\":{\"href\":\"/api/v3/users/129\",\"title\":\"Angelique Uwamahoro\"},\"17\":{\"href\":\"/api/v3/users/95\",\"title\":\"Anicet Kayumba\"},\"18\":{\"href\":\"/api/v3/users/59\",\"title\":\"Antoine Sebera\"},\"19\":{\"href\":\"/api/v3/users/48\",\"title\":\"Aurore Gashumba\"},\"20\":{\"href\":\"/api/v3/users/31\",\"title\":\"Bahati Tuyisabe\"},\"21\":{\"href\":\"/api/v3/users/71\",\"title\":\"Belyse Umutoni\"},\"22\":{\"href\":\"/api/v3/users/68\",\"title\":\"Ben Rwamucyo\"},\"23\":{\"href\":\"/api/v3/users/11\",\"title\":\"Christelle Muteteri\"},\"24\":{\"href\":\"/api/v3/users/3\",\"title\":\"Christophe NIYONSENGA\"},\"25\":{\"href\":\"/api/v3/users/248\",\"title\":\"Default Read-only-user\"},\"26\":{\"href\":\"/api/v3/users/72\",\"title\":\"Diana Gahima\"},\"27\":{\"href\":\"/api/v3/users/69\",\"title\":\"Didas Turatsinze\"},\"28\":{\"href\":\"/api/v3/users/50\",\"title\":\"Donata BUTERE\"},\"29\":{\"href\":\"/api/v3/users/19\",\"title\":\"Donatien Uhoraningoga\"},\"30\":{\"href\":\"/api/v3/users/91\",\"title\":\"Edson Mugabo\"},\"31\":{\"href\":\"/api/v3/users/5\",\"title\":\"Elisabeth Ujeneza\"},\"32\":{\"href\":\"/api/v3/users/96\",\"title\":\"Emile Musonera\"},\"33\":{\"href\":\"/api/v3/users/18\",\"title\":\"Etienne Birara\"},\"34\":{\"href\":\"/api/v3/users/93\",\"title\":\"Gerard Muziganyi\"},\"35\":{\"href\":\"/api/v3/users/28\",\"title\":\"Gervais Ngirabari\"},\"36\":{\"href\":\"/api/v3/users/179\",\"title\":\"Gisele Izera\"},\"37\":{\"href\":\"/api/v3/users/60\",\"title\":\"Gloria Ingabire\"},\"38\":{\"href\":\"/api/v3/users/29\",\"title\":\"Grace Iraguha\"},\"39\":{\"href\":\"/api/v3/users/20\",\"title\":\"Ignace sinzi\"},\"40\":{\"href\":\"/api/v3/users/75\",\"title\":\"Innocent Asiimwe\"},\"41\":{\"href\":\"/api/v3/users/110\",\"title\":\"Innocent Kwizera\"},\"42\":{\"href\":\"/api/v3/users/21\",\"title\":\"Innocent Twagirimana\"},\"43\":{\"href\":\"/api/v3/users/61\",\"title\":\"Jackline Muteteri\"},\"44\":{\"href\":\"/api/v3/users/203\",\"title\":\"Jean de Dieu Habimana\"},\"45\":{\"href\":\"/api/v3/users/113\",\"title\":\"Jean-Jacques DUSHIMIYIMANA\"},\"46\":{\"href\":\"/api/v3/users/84\",\"title\":\"Josephine Nyiranzeyimana\"},\"47\":{\"href\":\"/api/v3/users/206\",\"title\":\"Josue Kamanzi\"},\"48\":{\"href\":\"/api/v3/users/79\",\"title\":\"Jules Rukundo\"},\"49\":{\"href\":\"/api/v3/users/70\",\"title\":\"Julien Endelea Rujanju\"},\"50\":{\"href\":\"/api/v3/users/8\",\"title\":\"Leonidas Twiringiyimana\"},\"51\":{\"href\":\"/api/v3/users/35\",\"title\":\"Louis de Montfort NDUWAYEZU\"},\"52\":{\"href\":\"/api/v3/users/14\",\"title\":\"Lucie Uwizeye\"},\"53\":{\"href\":\"/api/v3/users/33\",\"title\":\"Marcellin Nyirishyaka\"},\"54\":{\"href\":\"/api/v3/users/16\",\"title\":\"Marlene Uwingabire\"},\"55\":{\"href\":\"/api/v3/users/199\",\"title\":\"Martine Habimana\"},\"56\":{\"href\":\"/api/v3/users/49\",\"title\":\"Maryse Gwiza\"},\"57\":{\"href\":\"/api/v3/users/82\",\"title\":\"Meable Abaabo\"},\"58\":{\"href\":\"/api/v3/users/141\",\"title\":\"Moses Gasana\"},\"59\":{\"href\":\"/api/v3/users/62\",\"title\":\"Oliver Mutesi\"},\"60\":{\"href\":\"/api/v3/users/76\",\"title\":\"Olivier Ingabire\"},\"61\":{\"href\":\"/api/v3/users/39\",\"title\":\"Pachat Pacifique Hategekimana\"},\"62\":{\"href\":\"/api/v3/users/6\",\"title\":\"Pierre Celestin Nizeyimana\"},\"63\":{\"href\":\"/api/v3/users/66\",\"title\":\"Rene Kabalisa\"},\"64\":{\"href\":\"/api/v3/users/98\",\"title\":\"Richard Muragijimana\"},\"65\":{\"href\":\"/api/v3/users/7\",\"title\":\"Rutsinga Arsene\"},\"66\":{\"href\":\"/api/v3/users/64\",\"title\":\"Said Ngoga\"},\"67\":{\"href\":\"/api/v3/users/15\",\"title\":\"Solange Kalema\"},\"68\":{\"href\":\"/api/v3/users/9\",\"title\":\"Sylvere Mugumya\"},\"69\":{\"href\":\"/api/v3/users/63\",\"title\":\"Sylvia Nzaramba\"},\"70\":{\"href\":\"/api/v3/users/94\",\"title\":\"Sylvie Nsanga\"},\"71\":{\"href\":\"/api/v3/users/51\",\"title\":\"Test Permission level\"},\"72\":{\"href\":\"/api/v3/users/10\",\"title\":\"Thierry Ngabo\"},\"73\":{\"href\":\"/api/v3/users/4\",\"title\":\"Thomas Wiemann\"},\"74\":{\"href\":\"/api/v3/users/36\",\"title\":\"Uwingeneye Providence\"}}}}","External-AtacsProjects","Risa-CEO-Management","RISA-Cyber Security","RISA-GCINO-Enterprise arch.","RISA-GCINO-Innovation","RISA-GCINO-Management","RISA-GCINO-Software solutions","Risa-GCIO Cluster coordination","RISA-GCIO-Infrastructure","Risa-GCIO-Management","Aimable Muderi","Alain Kamanzi","Alfred Ntaganda","Alphonse Zigira","Ange Muhimundu","Angelique Uwamahoro","Anicet Kayumba","Antoine Sebera","Aurore Gashumba","Bahati Tuyisabe","Belyse Umutoni","Ben Rwamucyo","Christelle Muteteri","Christophe NIYONSENGA","Default Read-only-user","Diana Gahima","Didas Turatsinze","Donata BUTERE","Donatien Uhoraningoga","Edson Mugabo","Elisabeth Ujeneza","Emile Musonera","Etienne Birara","Gerard Muziganyi","Gervais Ngirabari","Gisele Izera","Gloria Ingabire","Grace Iraguha","Ignace sinzi","Innocent Asiimwe","Innocent Kwizera","Innocent Twagirimana","Jackline Muteteri","Jean de Dieu Habimana","Jean-Jacques DUSHIMIYIMANA","Josephine Nyiranzeyimana","Josue Kamanzi","Jules Rukundo","Julien Endelea Rujanju","Leonidas Twiringiyimana","Louis de Montfort NDUWAYEZU","Lucie Uwizeye","Marcellin Nyirishyaka","Marlene Uwingabire","Martine Habimana","Maryse Gwiza","Meable Abaabo","Moses Gasana","Oliver Mutesi","Olivier Ingabire","Pachat Pacifique Hategekimana","Pierre Celestin Nizeyimana","Rene Kabalisa","Richard Muragijimana","Rutsinga Arsene","Said Ngoga","Solange Kalema","Sylvere Mugumya","Sylvia Nzaramba","Sylvie Nsanga","Test Permission level","Thierry Ngabo","Thomas Wiemann","Uwingeneye Providence"]
["assignee","Assignee","User","{\"type\":\"User\",\"name\":\"Assignee\",\"required\":false,\"hasDefault\":false,\"writable\":true,\"attributeGroup\":\"People\",\"_links\":{\"allowedValues\":{\"1\":{\"href\":\"/api/v3/groups/112\",\"title\":\"External-AtacsProjects\"},\"2\":{\"href\":\"/api/v3/groups/85\",\"title\":\"Risa-CEO-Management\"},\"3\":{\"href\":\"/api/v3/groups/105\",\"title\":\"RISA-Cyber Security\"},\"4\":{\"href\":\"/api/v3/groups/13\",\"title\":\"RISA-GCINO-Enterprise arch.\"},\"5\":{\"href\":\"/api/v3/groups/65\",\"title\":\"RISA-GCINO-Innovation\"},\"6\":{\"href\":\"/api/v3/groups/30\",\"title\":\"RISA-GCINO-Management\"},\"7\":{\"href\":\"/api/v3/groups/12\",\"title\":\"RISA-GCINO-Software solutions\"},\"8\":{\"href\":\"/api/v3/groups/92\",\"title\":\"Risa-GCIO Cluster coordination\"},\"9\":{\"href\":\"/api/v3/groups/41\",\"title\":\"RISA-GCIO-Infrastructure\"},\"10\":{\"href\":\"/api/v3/groups/83\",\"title\":\"Risa-GCIO-Management\"},\"11\":{\"href\":\"/api/v3/users/97\",\"title\":\"Aimable Muderi\"},\"12\":{\"href\":\"/api/v3/users/67\",\"title\":\"Alain Kamanzi\"},\"13\":{\"href\":\"/api/v3/users/106\",\"title\":\"Alfred Ntaganda\"},\"14\":{\"href\":\"/api/v3/users/42\",\"title\":\"Alphonse Zigira\"},\"15\":{\"href\":\"/api/v3/users/111\",\"title\":\"Ange Muhimundu\"},\"16\":{\"href\":\"/api/v3/users/129\",\"title\":\"Angelique Uwamahoro\"},\"17\":{\"href\":\"/api/v3/users/95\",\"title\":\"Anicet Kayumba\"},\"18\":{\"href\":\"/api/v3/users/59\",\"title\":\"Antoine Sebera\"},\"19\":{\"href\":\"/api/v3/users/48\",\"title\":\"Aurore Gashumba\"},\"20\":{\"href\":\"/api/v3/users/31\",\"title\":\"Bahati Tuyisabe\"},\"21\":{\"href\":\"/api/v3/users/71\",\"title\":\"Belyse Umutoni\"},\"22\":{\"href\":\"/api/v3/users/68\",\"title\":\"Ben Rwamucyo\"},\"23\":{\"href\":\"/api/v3/users/11\",\"title\":\"Christelle Muteteri\"},\"24\":{\"href\":\"/api/v3/users/3\",\"title\":\"Christophe NIYONSENGA\"},\"25\":{\"href\":\"/api/v3/users/248\",\"title\":\"Default Read-only-user\"},\"26\":{\"href\":\"/api/v3/users/72\",\"title\":\"Diana Gahima\"},\"27\":{\"href\":\"/api/v3/users/69\",\"title\":\"Didas Turatsinze\"},\"28\":{\"href\":\"/api/v3/users/50\",\"title\":\"Donata BUTERE\"},\"29\":{\"href\":\"/api/v3/users/19\",\"title\":\"Donatien Uhoraningoga\"},\"30\":{\"href\":\"/api/v3/users/91\",\"title\":\"Edson Mugabo\"},\"31\":{\"href\":\"/api/v3/users/5\",\"title\":\"Elisabeth Ujeneza\"},\"32\":{\"href\":\"/api/v3/users/96\",\"title\":\"Emile Musonera\"},\"33\":{\"href\":\"/api/v3/users/18\",\"title\":\"Etienne Birara\"},\"34\":{\"href\":\"/api/v3/users/93\",\"title\":\"Gerard Muziganyi\"},\"35\":{\"href\":\"/api/v3/users/28\",\"title\":\"Gervais Ngirabari\"},\"36\":{\"href\":\"/api/v3/users/179\",\"title\":\"Gisele Izera\"},\"37\":{\"href\":\"/api/v3/users/60\",\"title\":\"Gloria Ingabire\"},\"38\":{\"href\":\"/api/v3/users/29\",\"title\":\"Grace Iraguha\"},\"39\":{\"href\":\"/api/v3/users/20\",\"title\":\"Ignace sinzi\"},\"40\":{\"href\":\"/api/v3/users/75\",\"title\":\"Innocent Asiimwe\"},\"41\":{\"href\":\"/api/v3/users/110\",\"title\":\"Innocent Kwizera\"},\"42\":{\"href\":\"/api/v3/users/21\",\"title\":\"Innocent Twagirimana\"},\"43\":{\"href\":\"/api/v3/users/61\",\"title\":\"Jackline Muteteri\"},\"44\":{\"href\":\"/api/v3/users/203\",\"title\":\"Jean de Dieu Habimana\"},\"45\":{\"href\":\"/api/v3/users/113\",\"title\":\"Jean-Jacques DUSHIMIYIMANA\"},\"46\":{\"href\":\"/api/v3/users/84\",\"title\":\"Josephine Nyiranzeyimana\"},\"47\":{\"href\":\"/api/v3/users/206\",\"title\":\"Josue Kamanzi\"},\"48\":{\"href\":\"/api/v3/users/79\",\"title\":\"Jules Rukundo\"},\"49\":{\"href\":\"/api/v3/users/70\",\"title\":\"Julien Endelea Rujanju\"},\"50\":{\"href\":\"/api/v3/users/8\",\"title\":\"Leonidas Twiringiyimana\"},\"51\":{\"href\":\"/api/v3/users/35\",\"title\":\"Louis de Montfort NDUWAYEZU\"},\"52\":{\"href\":\"/api/v3/users/14\",\"title\":\"Lucie Uwizeye\"},\"53\":{\"href\":\"/api/v3/users/33\",\"title\":\"Marcellin Nyirishyaka\"},\"54\":{\"href\":\"/api/v3/users/16\",\"title\":\"Marlene Uwingabire\"},\"55\":{\"href\":\"/api/v3/users/199\",\"title\":\"Martine Habimana\"},\"56\":{\"href\":\"/api/v3/users/49\",\"title\":\"Maryse Gwiza\"},\"57\":{\"href\":\"/api/v3/users/82\",\"title\":\"Meable Abaabo\"},\"58\":{\"href\":\"/api/v3/users/141\",\"title\":\"Moses Gasana\"},\"59\":{\"href\":\"/api/v3/users/62\",\"title\":\"Oliver Mutesi\"},\"60\":{\"href\":\"/api/v3/users/76\",\"title\":\"Olivier Ingabire\"},\"61\":{\"href\":\"/api/v3/users/39\",\"title\":\"Pachat Pacifique Hategekimana\"},\"62\":{\"href\":\"/api/v3/users/6\",\"title\":\"Pierre Celestin Nizeyimana\"},\"63\":{\"href\":\"/api/v3/users/66\",\"title\":\"Rene Kabalisa\"},\"64\":{\"href\":\"/api/v3/users/98\",\"title\":\"Richard Muragijimana\"},\"65\":{\"href\":\"/api/v3/users/7\",\"title\":\"Rutsinga Arsene\"},\"66\":{\"href\":\"/api/v3/users/64\",\"title\":\"Said Ngoga\"},\"67\":{\"href\":\"/api/v3/users/15\",\"title\":\"Solange Kalema\"},\"68\":{\"href\":\"/api/v3/users/9\",\"title\":\"Sylvere Mugumya\"},\"69\":{\"href\":\"/api/v3/users/63\",\"title\":\"Sylvia Nzaramba\"},\"70\":{\"href\":\"/api/v3/users/94\",\"title\":\"Sylvie Nsanga\"},\"71\":{\"href\":\"/api/v3/users/51\",\"title\":\"Test Permission level\"},\"72\":{\"href\":\"/api/v3/users/10\",\"title\":\"Thierry Ngabo\"},\"73\":{\"href\":\"/api/v3/users/4\",\"title\":\"Thomas Wiemann\"},\"74\":{\"href\":\"/api/v3/users/36\",\"title\":\"Uwingeneye Providence\"}}}}","External-AtacsProjects","Risa-CEO-Management","RISA-Cyber Security","RISA-GCINO-Enterprise arch.","RISA-GCINO-Innovation","RISA-GCINO-Management","RISA-GCINO-Software solutions","Risa-GCIO Cluster coordination","RISA-GCIO-Infrastructure","Risa-GCIO-Management","Aimable Muderi","Alain Kamanzi","Alfred Ntaganda","Alphonse Zigira","Ange Muhimundu","Angelique Uwamahoro","Anicet Kayumba","Antoine Sebera","Aurore Gashumba","Bahati Tuyisabe","Belyse Umutoni","Ben Rwamucyo","Christelle Muteteri","Christophe NIYONSENGA","Default Read-only-user","Diana Gahima","Didas Turatsinze","Donata BUTERE","Donatien Uhoraningoga","Edson Mugabo","Elisabeth Ujeneza","Emile Musonera","Etienne Birara","Gerard Muziganyi","Gervais Ngirabari","Gisele Izera","Gloria Ingabire","Grace Iraguha","Ignace sinzi","Innocent Asiimwe","Innocent Kwizera","Innocent Twagirimana","Jackline Muteteri","Jean de Dieu Habimana","Jean-Jacques DUSHIMIYIMANA","Josephine Nyiranzeyimana","Josue Kamanzi","Jules Rukundo","Julien Endelea Rujanju","Leonidas Twiringiyimana","Louis de Montfort NDUWAYEZU","Lucie Uwizeye","Marcellin Nyirishyaka","Marlene Uwingabire","Martine Habimana","Maryse Gwiza","Meable Abaabo","Moses Gasana","Oliver Mutesi","Olivier Ingabire","Pachat Pacifique Hategekimana","Pierre Celestin Nizeyimana","Rene Kabalisa","Richard Muragijimana","Rutsinga Arsene","Said Ngoga","Solange Kalema","Sylvere Mugumya","Sylvia Nzaramba","Sylvie Nsanga","Test Permission level","Thierry Ngabo","Thomas Wiemann","Uwingeneye Providence"]
["author","Author","User","{\"type\":\"User\",\"name\":\"Author\",\"required\":true,\"hasDefault\":false,\"writable\":false,\"options\":{}}"]
["customField10","Baseline finish date","Date","{\"type\":\"Date\",\"name\":\"Baseline finish date\",\"required\":false,\"hasDefault\":false,\"writable\":true,\"attributeGroup\":\"Details\",\"options\":{\"rtl\":null}}"]
["customField25","Business process step action","String","{\"type\":\"String\",\"name\":\"Business process step action\",\"required\":false,\"hasDefault\":false,\"writable\":true,\"attributeGroup\":\"Attributes\",\"options\":{\"rtl\":null}}"]
["customField23","Business process step actor","String","{\"type\":\"String\",\"name\":\"Business process step actor\",\"required\":false,\"hasDefault\":false,\"writable\":true,\"attributeGroup\":\"Attributes\",\"options\":{\"rtl\":null}}"]
["customField22","Business process step name","String","{\"type\":\"String\",\"name\":\"Business process step name\",\"required\":false,\"hasDefault\":false,\"writable\":true,\"attributeGroup\":\"Attributes\",\"options\":{\"rtl\":null}}"]
["category","Category","Category","{\"type\":\"Category\",\"name\":\"Category\",\"required\":false,\"hasDefault\":false,\"writable\":true,\"attributeGroup\":\"Details\",\"_embedded\":{\"allowedValues\":[]},\"_links\":{\"allowedValues\":[]}}"]
["customField5","Comments","String","{\"type\":\"String\",\"name\":\"Comments\",\"required\":false,\"hasDefault\":false,\"writable\":true,\"attributeGroup\":\"Details\",\"options\":{\"rtl\":null}}"]
["customField50","Conformity of Requirement","CustomOption","{\"type\":\"CustomOption\",\"name\":\"Conformity of Requirement\",\"required\":false,\"hasDefault\":false,\"writable\":true,\"attributeGroup\":\"External reference\",\"_embedded\":{\"allowedValues\":[{\"_type\":\"CustomOption\",\"id\":72,\"value\":\"Requirement supported by solution w/o changes\",\"_links\":{\"self\":{\"href\":\"/api/v3/custom_options/72\",\"title\":\"Requirement supported by solution w/o changes\"}}},{\"_type\":\"CustomOption\",\"id\":73,\"value\":\"Requirement supported with 3rd party software\",\"_links\":{\"self\":{\"href\":\"/api/v3/custom_options/73\",\"title\":\"Requirement supported with 3rd party software\"}}},{\"_type\":\"CustomOption\",\"id\":74,\"value\":\"Requirement supported in next version\",\"_links\":{\"self\":{\"href\":\"/api/v3/custom_options/74\",\"title\":\"Requirement supported in next version\"}}},{\"_type\":\"CustomOption\",\"id\":75,\"value\":\"Requirement not supported\",\"_links\":{\"self\":{\"href\":\"/api/v3/custom_options/75\",\"title\":\"Requirement not supported\"}}}]},\"_links\":{\"allowedValues\":[{\"href\":\"/api/v3/custom_options/72\",\"title\":\"Requirement supported by solution w/o changes\"},{\"href\":\"/api/v3/custom_options/73\",\"title\":\"Requirement supported with 3rd party software\"},{\"href\":\"/api/v3/custom_options/74\",\"title\":\"Requirement supported in next version\"},{\"href\":\"/api/v3/custom_options/75\",\"title\":\"Requirement not supported\"}]}}","Requirement supported by solution w/o changes","Requirement supported with 3rd party software","Requirement supported in next version","Requirement not supported"]
["createdAt","Created on","DateTime","{\"type\":\"DateTime\",\"name\":\"Created on\",\"required\":true,\"hasDefault\":false,\"writable\":false,\"options\":{}}"]
["estimatedTime","Estimated time","Duration","{\"type\":\"Duration\",\"name\":\"Estimated time\",\"required\":false,\"hasDefault\":false,\"writable\":true,\"attributeGroup\":\"Estimates and time\",\"options\":{}}"]
["customField51","External reference","String","{\"type\":\"String\",\"name\":\"External reference\",\"required\":false,\"hasDefault\":false,\"writable\":true,\"attributeGroup\":\"External reference\",\"options\":{\"rtl\":null}}"]
["customField52","Feedback of external party","String","{\"type\":\"String\",\"name\":\"Feedback of external party\",\"required\":false,\"hasDefault\":false,\"writable\":true,\"attributeGroup\":\"External reference\",\"options\":{\"rtl\":null}}"]
["dueDate","Finish date","Date","{\"type\":\"Date\",\"name\":\"Finish date\",\"required\":false,\"hasDefault\":false,\"writable\":true,\"options\":{}}"]
["customField9","Meeting date","Date","{\"type\":\"Date\",\"name\":\"Meeting date\",\"required\":false,\"hasDefault\":false,\"writable\":true,\"attributeGroup\":\"Details\",\"options\":{\"rtl\":null}}"]
["parent","Parent","WorkPackage","{\"type\":\"WorkPackage\",\"name\":\"Parent\",\"required\":false,\"hasDefault\":false,\"writable\":true,\"options\":{}}"]
["position","Position","Integer","{\"type\":\"Integer\",\"name\":\"Position\",\"required\":false,\"hasDefault\":false,\"writable\":false,\"attributeGroup\":\"Other\",\"options\":{}}"]
["priority","Priority","Priority","{\"type\":\"Priority\",\"name\":\"Priority\",\"required\":false,\"hasDefault\":true,\"writable\":true,\"attributeGroup\":\"Details\",\"_embedded\":{\"allowedValues\":[{\"_type\":\"Priority\",\"id\":7,\"name\":\"Low\",\"position\":1,\"color\":\"#F4FCE3\",\"isDefault\":false,\"isActive\":true,\"_links\":{\"self\":{\"href\":\"/api/v3/priorities/7\",\"title\":\"Low\"}}},{\"_type\":\"Priority\",\"id\":8,\"name\":\"Normal\",\"position\":2,\"color\":\"#D3F9D8\",\"isDefault\":true,\"isActive\":true,\"_links\":{\"self\":{\"href\":\"/api/v3/priorities/8\",\"title\":\"Normal\"}}},{\"_type\":\"Priority\",\"id\":9,\"name\":\"High\",\"position\":3,\"color\":\"#FFEC99\",\"isDefault\":false,\"isActive\":true,\"_links\":{\"self\":{\"href\":\"/api/v3/priorities/9\",\"title\":\"High\"}}},{\"_type\":\"Priority\",\"id\":10,\"name\":\"Immediate\",\"position\":4,\"color\":\"#FFA8A8\",\"isDefault\":false,\"isActive\":true,\"_links\":{\"self\":{\"href\":\"/api/v3/priorities/10\",\"title\":\"Immediate\"}}}]},\"_links\":{\"allowedValues\":[{\"href\":\"/api/v3/priorities/7\",\"title\":\"Low\"},{\"href\":\"/api/v3/priorities/8\",\"title\":\"Normal\"},{\"href\":\"/api/v3/priorities/9\",\"title\":\"High\"},{\"href\":\"/api/v3/priorities/10\",\"title\":\"Immediate\"}]}}","Low","Normal","High","Immediate"]
["customField48","Priority of requirement","CustomOption","{\"type\":\"CustomOption\",\"name\":\"Priority of requirement\",\"required\":false,\"hasDefault\":false,\"writable\":true,\"attributeGroup\":\"Details\",\"_embedded\":{\"allowedValues\":[{\"_type\":\"CustomOption\",\"id\":68,\"value\":\"Not applicable\",\"_links\":{\"self\":{\"href\":\"/api/v3/custom_options/68\",\"title\":\"Not applicable\"}}},{\"_type\":\"CustomOption\",\"id\":69,\"value\":\"Nice to have\",\"_links\":{\"self\":{\"href\":\"/api/v3/custom_options/69\",\"title\":\"Nice to have\"}}},{\"_type\":\"CustomOption\",\"id\":70,\"value\":\"Expected\",\"_links\":{\"self\":{\"href\":\"/api/v3/custom_options/70\",\"title\":\"Expected\"}}},{\"_type\":\"CustomOption\",\"id\":71,\"value\":\"Must have\",\"_links\":{\"self\":{\"href\":\"/api/v3/custom_options/71\",\"title\":\"Must have\"}}}]},\"_links\":{\"allowedValues\":[{\"href\":\"/api/v3/custom_options/68\",\"title\":\"Not applicable\"},{\"href\":\"/api/v3/custom_options/69\",\"title\":\"Nice to have\"},{\"href\":\"/api/v3/custom_options/70\",\"title\":\"Expected\"},{\"href\":\"/api/v3/custom_options/71\",\"title\":\"Must have\"}]}}","Not applicable","Nice to have","Expected","Must have"]
["percentageDone","Progress (%)","Integer","{\"type\":\"Integer\",\"name\":\"Progress (%)\",\"required\":false,\"hasDefault\":false,\"writable\":true,\"attributeGroup\":\"Details\",\"options\":{}}"]
["project","Project","Project","{\"type\":\"Project\",\"name\":\"Project\",\"required\":true,\"hasDefault\":false,\"writable\":true,\"_links\":{\"allowedValues\":{\"1\":{\"href\":\"/api/v3/projects/80\",\"title\":\"00 Risa Template SCRUM\"}}}}","risa-template-scrum"]
["remainingTime","Remaining Hours","Duration","{\"type\":\"Duration\",\"name\":\"Remaining Hours\",\"required\":false,\"hasDefault\":false,\"writable\":true,\"attributeGroup\":\"Estimates and time\",\"options\":{}}"]
["customField1","Resource utilization (%)","Integer","{\"type\":\"Integer\",\"name\":\"Resource utilization (%)\",\"required\":false,\"hasDefault\":true,\"writable\":true,\"attributeGroup\":\"Estimates and time\",\"maxLength\":100,\"options\":{\"rtl\":null}}"]
["customField20","Service Management Category","[]CustomOption","{\"type\":\"[]CustomOption\",\"name\":\"Service Management Category\",\"required\":true,\"hasDefault\":false,\"writable\":true,\"attributeGroup\":\"Details\",\"_embedded\":{\"allowedValues\":[{\"_type\":\"CustomOption\",\"id\":7,\"value\":\"Operational Support\",\"_links\":{\"self\":{\"href\":\"/api/v3/custom_options/7\",\"title\":\"Operational Support\"}}},{\"_type\":\"CustomOption\",\"id\":8,\"value\":\"System assessment\",\"_links\":{\"self\":{\"href\":\"/api/v3/custom_options/8\",\"title\":\"System assessment\"}}},{\"_type\":\"CustomOption\",\"id\":9,\"value\":\"Meeting/Workshop organization\",\"_links\":{\"self\":{\"href\":\"/api/v3/custom_options/9\",\"title\":\"Meeting/Workshop organization\"}}},{\"_type\":\"CustomOption\",\"id\":10,\"value\":\"Meeting/Workshop participation\",\"_links\":{\"self\":{\"href\":\"/api/v3/custom_options/10\",\"title\":\"Meeting/Workshop participation\"}}},{\"_type\":\"CustomOption\",\"id\":11,\"value\":\"Tender support\",\"_links\":{\"self\":{\"href\":\"/api/v3/custom_options/11\",\"title\":\"Tender support\"}}},{\"_type\":\"CustomOption\",\"id\":12,\"value\":\"System bug solution\",\"_links\":{\"self\":{\"href\":\"/api/v3/custom_options/12\",\"title\":\"System bug solution\"}}},{\"_type\":\"CustomOption\",\"id\":95,\"value\":\"Cross Division support\",\"_links\":{\"self\":{\"href\":\"/api/v3/custom_options/95\",\"title\":\"Cross Division support\"}}},{\"_type\":\"CustomOption\",\"id\":96,\"value\":\"Consultation/Advisory\",\"_links\":{\"self\":{\"href\":\"/api/v3/custom_options/96\",\"title\":\"Consultation/Advisory\"}}},{\"_type\":\"CustomOption\",\"id\":97,\"value\":\"Provide Training\",\"_links\":{\"self\":{\"href\":\"/api/v3/custom_options/97\",\"title\":\"Provide Training\"}}}]},\"_links\":{\"allowedValues\":[{\"href\":\"/api/v3/custom_options/7\",\"title\":\"Operational Support\"},{\"href\":\"/api/v3/custom_options/8\",\"title\":\"System assessment\"},{\"href\":\"/api/v3/custom_options/9\",\"title\":\"Meeting/Workshop organization\"},{\"href\":\"/api/v3/custom_options/10\",\"title\":\"Meeting/Workshop participation\"},{\"href\":\"/api/v3/custom_options/11\",\"title\":\"Tender support\"},{\"href\":\"/api/v3/custom_options/12\",\"title\":\"System bug solution\"},{\"href\":\"/api/v3/custom_options/95\",\"title\":\"Cross Division support\"},{\"href\":\"/api/v3/custom_options/96\",\"title\":\"Consultation/Advisory\"},{\"href\":\"/api/v3/custom_options/97\",\"title\":\"Provide Training\"}]}}","Operational Support","System assessment","Meeting/Workshop organization","Meeting/Workshop participation","Tender support","System bug solution","Cross Division support","Consultation/Advisory","Provide Training"]
["customField16","Severity","CustomOption","{\"type\":\"CustomOption\",\"name\":\"Severity\",\"required\":false,\"hasDefault\":false,\"writable\":true,\"attributeGroup\":\"Details\",\"_embedded\":{\"allowedValues\":[{\"_type\":\"CustomOption\",\"id\":1,\"value\":\"00-low severity\",\"_links\":{\"self\":{\"href\":\"/api/v3/custom_options/1\",\"title\":\"00-low severity\"}}},{\"_type\":\"CustomOption\",\"id\":2,\"value\":\"10-medium severity\",\"_links\":{\"self\":{\"href\":\"/api/v3/custom_options/2\",\"title\":\"10-medium severity\"}}},{\"_type\":\"CustomOption\",\"id\":3,\"value\":\"20-high severity\",\"_links\":{\"self\":{\"href\":\"/api/v3/custom_options/3\",\"title\":\"20-high severity\"}}}]},\"_links\":{\"allowedValues\":[{\"href\":\"/api/v3/custom_options/1\",\"title\":\"00-low severity\"},{\"href\":\"/api/v3/custom_options/2\",\"title\":\"10-medium severity\"},{\"href\":\"/api/v3/custom_options/3\",\"title\":\"20-high severity\"}]}}","00-low severity","10-medium severity","20-high severity"]
["startDate","Start date","Date","{\"type\":\"Date\",\"name\":\"Start date\",\"required\":false,\"hasDefault\":false,\"writable\":true,\"options\":{}}"]
["status","Status","Status","{\"type\":\"Status\",\"name\":\"Status\",\"required\":true,\"hasDefault\":true,\"writable\":true,\"_embedded\":{\"allowedValues\":[{\"_type\":\"Status\",\"id\":1,\"name\":\"New\",\"isClosed\":false,\"color\":\"#FF8787\",\"isDefault\":true,\"isReadonly\":false,\"defaultDoneRatio\":null,\"position\":1,\"_links\":{\"self\":{\"href\":\"/api/v3/statuses/1\",\"title\":\"New\"}}}]},\"_links\":{\"allowedValues\":[{\"href\":\"/api/v3/statuses/1\",\"title\":\"New\"}]}}","New"]
["customField58","Status comments","String","{\"type\":\"String\",\"name\":\"Status comments\",\"required\":false,\"hasDefault\":false,\"writable\":true,\"attributeGroup\":\"Details\",\"options\":{\"rtl\":null}}"]
["storyPoints","Story Points","Integer","{\"type\":\"Integer\",\"name\":\"Story Points\",\"required\":false,\"hasDefault\":false,\"writable\":true,\"attributeGroup\":\"Estimates and time\",\"options\":{}}"]
["customField15","Test-assessed result","Formattable","{\"type\":\"Formattable\",\"name\":\"Test-assessed result\",\"required\":false,\"hasDefault\":false,\"writable\":true,\"attributeGroup\":\"Details\",\"options\":{\"rtl\":null}}"]
["customField11","Tested in version","Version","{\"type\":\"Version\",\"name\":\"Tested in version\",\"required\":false,\"hasDefault\":false,\"writable\":true,\"attributeGroup\":\"Details\",\"_embedded\":{\"allowedValues\":[{\"_type\":\"Version\",\"id\":17,\"name\":\"Global Backlog\",\"description\":{\"format\":\"plain\",\"raw\":\"\",\"html\":\"\"},\"startDate\":\"2019-10-01\",\"endDate\":\"2019-10-31\",\"status\":\"open\",\"sharing\":\"hierarchy\",\"createdAt\":\"2019-04-08T04:11:30Z\",\"updatedAt\":\"2019-10-01T06:16:00Z\",\"_links\":{\"self\":{\"href\":\"/api/v3/versions/17\",\"title\":\"Global Backlog\"},\"schema\":{\"href\":\"/api/v3/versions/schema\"},\"definingProject\":{\"href\":\"/api/v3/projects/7\",\"title\":\"Risa\"},\"availableInProjects\":{\"href\":\"/api/v3/versions/17/projects\"}}},{\"_type\":\"Version\",\"id\":18,\"name\":\"Global Wishlist\",\"description\":{\"format\":\"plain\",\"raw\":\"\",\"html\":\"\"},\"startDate\":\"2019-11-01\",\"endDate\":\"2019-11-30\",\"status\":\"open\",\"sharing\":\"hierarchy\",\"createdAt\":\"2019-04-08T04:11:50Z\",\"updatedAt\":\"2019-10-01T06:15:14Z\",\"_links\":{\"self\":{\"href\":\"/api/v3/versions/18\",\"title\":\"Global Wishlist\"},\"schema\":{\"href\":\"/api/v3/versions/schema\"},\"definingProject\":{\"href\":\"/api/v3/projects/7\",\"title\":\"Risa\"},\"availableInProjects\":{\"href\":\"/api/v3/versions/18/projects\"}}},{\"_type\":\"Version\",\"id\":33,\"name\":\"Risa global backlog Service requests\",\"description\":{\"format\":\"plain\",\"raw\":\"\",\"html\":\"\"},\"startDate\":null,\"endDate\":null,\"status\":\"open\",\"sharing\":\"descendants\",\"createdAt\":\"2019-05-30T12:01:22Z\",\"updatedAt\":\"2019-05-30T12:01:22Z\",\"_links\":{\"self\":{\"href\":\"/api/v3/versions/33\",\"title\":\"Risa global backlog Service requests\"},\"schema\":{\"href\":\"/api/v3/versions/schema\"},\"definingProject\":{\"href\":\"/api/v3/projects/7\",\"title\":\"Risa\"},\"availableInProjects\":{\"href\":\"/api/v3/versions/33/projects\"}}},{\"_type\":\"Version\",\"id\":148,\"name\":\"Risa sprint week 2020-29\",\"description\":{\"format\":\"plain\",\"raw\":\"\",\"html\":\"\"},\"startDate\":\"2020-07-13\",\"endDate\":\"2020-07-19\",\"status\":\"open\",\"sharing\":\"descendants\",\"createdAt\":\"2020-07-08T11:40:05Z\",\"updatedAt\":\"2020-07-08T11:40:05Z\",\"_links\":{\"self\":{\"href\":\"/api/v3/versions/148\",\"title\":\"Risa sprint week 2020-29\"},\"schema\":{\"href\":\"/api/v3/versions/schema\"},\"definingProject\":{\"href\":\"/api/v3/projects/7\",\"title\":\"Risa\"},\"availableInProjects\":{\"href\":\"/api/v3/versions/148/projects\"}}},{\"_type\":\"Version\",\"id\":150,\"name\":\"Risa sprint week 2020-31\",\"description\":{\"format\":\"plain\",\"raw\":\"\",\"html\":\"\"},\"startDate\":\"2020-07-27\",\"endDate\":\"2020-08-02\",\"status\":\"open\",\"sharing\":\"descendants\",\"createdAt\":\"2020-07-19T17:36:10Z\",\"updatedAt\":\"2020-07-19T17:36:10Z\",\"_links\":{\"self\":{\"href\":\"/api/v3/versions/150\",\"title\":\"Risa sprint week 2020-31\"},\"schema\":{\"href\":\"/api/v3/versions/schema\"},\"definingProject\":{\"href\":\"/api/v3/projects/7\",\"title\":\"Risa\"},\"availableInProjects\":{\"href\":\"/api/v3/versions/150/projects\"}}},{\"_type\":\"Version\",\"id\":149,\"name\":\"Risa sprint week 2020-30\",\"description\":{\"format\":\"plain\",\"raw\":\"\",\"html\":\"\"},\"startDate\":\"2020-07-20\",\"endDate\":\"2020-07-26\",\"status\":\"open\",\"sharing\":\"descendants\",\"createdAt\":\"2020-07-08T11:40:48Z\",\"updatedAt\":\"2020-07-08T11:40:48Z\",\"_links\":{\"self\":{\"href\":\"/api/v3/versions/149\",\"title\":\"Risa sprint week 2020-30\"},\"schema\":{\"href\":\"/api/v3/versions/schema\"},\"definingProject\":{\"href\":\"/api/v3/projects/7\",\"title\":\"Risa\"},\"availableInProjects\":{\"href\":\"/api/v3/versions/149/projects\"}}}]},\"_links\":{\"allowedValues\":[{\"href\":\"/api/v3/versions/17\",\"title\":\"Global Backlog\"},{\"href\":\"/api/v3/versions/18\",\"title\":\"Global Wishlist\"},{\"href\":\"/api/v3/versions/33\",\"title\":\"Risa global backlog Service requests\"},{\"href\":\"/api/v3/versions/148\",\"title\":\"Risa sprint week 2020-29\"},{\"href\":\"/api/v3/versions/150\",\"title\":\"Risa sprint week 2020-31\"},{\"href\":\"/api/v3/versions/149\",\"title\":\"Risa sprint week 2020-30\"}]}}","Global Backlog","Global Wishlist","Risa global backlog Service requests","Risa sprint week 2020-29","Risa sprint week 2020-31","Risa sprint week 2020-30"]
["customField14","Test-expected result","Formattable","{\"type\":\"Formattable\",\"name\":\"Test-expected result\",\"required\":false,\"hasDefault\":false,\"writable\":true,\"attributeGroup\":\"Details\",\"options\":{\"rtl\":null}}"]
["customField12","Test-precondition","Formattable","{\"type\":\"Formattable\",\"name\":\"Test-precondition\",\"required\":false,\"hasDefault\":false,\"writable\":true,\"attributeGroup\":\"Details\",\"options\":{\"rtl\":null}}"]
["customField13","Test-workflow","Formattable","{\"type\":\"Formattable\",\"name\":\"Test-workflow\",\"required\":false,\"hasDefault\":false,\"writable\":true,\"attributeGroup\":\"Details\",\"options\":{\"rtl\":null}}"]
["type","Type","Type","{\"type\":\"Type\",\"name\":\"Type\",\"required\":true,\"hasDefault\":false,\"writable\":true,\"_embedded\":{\"allowedValues\":[{\"_type\":\"Type\",\"id\":1,\"name\":\"Task\",\"color\":\"#1A67A3\",\"position\":1,\"isDefault\":true,\"isMilestone\":false,\"createdAt\":\"2019-03-01T14:52:54Z\",\"updatedAt\":\"2019-05-24T12:58:01Z\",\"_links\":{\"self\":{\"href\":\"/api/v3/types/1\",\"title\":\"Task\"}}},{\"_type\":\"Type\",\"id\":4,\"name\":\"Feature\",\"color\":\"#1A67A3\",\"position\":4,\"isDefault\":true,\"isMilestone\":false,\"createdAt\":\"2019-03-01T14:52:54Z\",\"updatedAt\":\"2019-03-01T14:52:54Z\",\"_links\":{\"self\":{\"href\":\"/api/v3/types/4\",\"title\":\"Feature\"}}},{\"_type\":\"Type\",\"id\":5,\"name\":\"Epic\",\"color\":\"#FFCC00\",\"position\":5,\"isDefault\":false,\"isMilestone\":false,\"createdAt\":\"2019-03-01T14:52:54Z\",\"updatedAt\":\"2019-05-05T18:30:39Z\",\"_links\":{\"self\":{\"href\":\"/api/v3/types/5\",\"title\":\"Epic\"}}},{\"_type\":\"Type\",\"id\":6,\"name\":\"User story\",\"color\":\"#878787\",\"position\":6,\"isDefault\":true,\"isMilestone\":false,\"createdAt\":\"2019-03-01T14:52:54Z\",\"updatedAt\":\"2019-03-01T14:52:54Z\",\"_links\":{\"self\":{\"href\":\"/api/v3/types/6\",\"title\":\"User story\"}}},{\"_type\":\"Type\",\"id\":7,\"name\":\"Bug\",\"color\":\"#FF3300\",\"position\":7,\"isDefault\":true,\"isMilestone\":false,\"createdAt\":\"2019-03-01T14:52:54Z\",\"updatedAt\":\"2020-04-08T11:07:20Z\",\"_links\":{\"self\":{\"href\":\"/api/v3/types/7\",\"title\":\"Bug\"}}},{\"_type\":\"Type\",\"id\":8,\"name\":\"Resource assignment\",\"color\":\"#E20074\",\"position\":8,\"isDefault\":true,\"isMilestone\":false,\"createdAt\":\"2019-03-02T14:52:52Z\",\"updatedAt\":\"2019-03-02T14:53:18Z\",\"_links\":{\"self\":{\"href\":\"/api/v3/types/8\",\"title\":\"Resource assignment\"}}},{\"_type\":\"Type\",\"id\":13,\"name\":\"Test case\",\"color\":\"#339933\",\"position\":10,\"isDefault\":false,\"isMilestone\":false,\"createdAt\":\"2019-05-27T05:48:10Z\",\"updatedAt\":\"2020-03-30T12:55:06Z\",\"_links\":{\"self\":{\"href\":\"/api/v3/types/13\",\"title\":\"Test case\"}}},{\"_type\":\"Type\",\"id\":15,\"name\":\"Service Request\",\"color\":\"#F06595\",\"position\":11,\"isDefault\":false,\"isMilestone\":false,\"createdAt\":\"2019-05-28T07:02:23Z\",\"updatedAt\":\"2019-07-31T06:43:20Z\",\"_links\":{\"self\":{\"href\":\"/api/v3/types/15\",\"title\":\"Service Request\"}}},{\"_type\":\"Type\",\"id\":16,\"name\":\"Architecture Feature\",\"color\":\"#E8590C\",\"position\":12,\"isDefault\":true,\"isMilestone\":false,\"createdAt\":\"2019-07-03T11:19:08Z\",\"updatedAt\":\"2019-07-03T11:27:04Z\",\"_links\":{\"self\":{\"href\":\"/api/v3/types/16\",\"title\":\"Architecture Feature\"}}},{\"_type\":\"Type\",\"id\":20,\"name\":\"business service steps\",\"color\":null,\"position\":14,\"isDefault\":false,\"isMilestone\":false,\"createdAt\":\"2019-07-30T10:13:10Z\",\"updatedAt\":\"2020-06-11T08:58:06Z\",\"_links\":{\"self\":{\"href\":\"/api/v3/types/20\",\"title\":\"business service steps\"}}},{\"_type\":\"Type\",\"id\":21,\"name\":\"business service\",\"color\":null,\"position\":15,\"isDefault\":false,\"isMilestone\":false,\"createdAt\":\"2019-07-30T10:20:44Z\",\"updatedAt\":\"2020-06-11T08:58:06Z\",\"_links\":{\"self\":{\"href\":\"/api/v3/types/21\",\"title\":\"business service\"}}},{\"_type\":\"Type\",\"id\":22,\"name\":\"business unit\",\"color\":\"#175A8E\",\"position\":16,\"isDefault\":false,\"isMilestone\":false,\"createdAt\":\"2019-07-30T10:24:31Z\",\"updatedAt\":\"2020-06-11T08:58:06Z\",\"_links\":{\"self\":{\"href\":\"/api/v3/types/22\",\"title\":\"business unit\"}}},{\"_type\":\"Type\",\"id\":25,\"name\":\"Requirement\",\"color\":null,\"position\":17,\"isDefault\":true,\"isMilestone\":false,\"createdAt\":\"2019-08-08T04:47:03Z\",\"updatedAt\":\"2020-06-11T08:58:06Z\",\"_links\":{\"self\":{\"href\":\"/api/v3/types/25\",\"title\":\"Requirement\"}}}]},\"_links\":{\"allowedValues\":[{\"href\":\"/api/v3/types/1\",\"title\":\"Task\"},{\"href\":\"/api/v3/types/4\",\"title\":\"Feature\"},{\"href\":\"/api/v3/types/5\",\"title\":\"Epic\"},{\"href\":\"/api/v3/types/6\",\"title\":\"User story\"},{\"href\":\"/api/v3/types/7\",\"title\":\"Bug\"},{\"href\":\"/api/v3/types/8\",\"title\":\"Resource assignment\"},{\"href\":\"/api/v3/types/13\",\"title\":\"Test case\"},{\"href\":\"/api/v3/types/15\",\"title\":\"Service Request\"},{\"href\":\"/api/v3/types/16\",\"title\":\"Architecture Feature\"},{\"href\":\"/api/v3/types/20\",\"title\":\"business service steps\"},{\"href\":\"/api/v3/types/21\",\"title\":\"business service\"},{\"href\":\"/api/v3/types/22\",\"title\":\"business unit\"},{\"href\":\"/api/v3/types/25\",\"title\":\"Requirement\"}]}}","Task","Feature","Epic","User story","Bug","Resource assignment","Test case","Service Request","Architecture Feature","business service steps","business service","business unit","Requirement"]
["customField45","Type of Requirement","CustomOption","{\"type\":\"CustomOption\",\"name\":\"Type of Requirement\",\"required\":false,\"hasDefault\":false,\"writable\":true,\"attributeGroup\":\"Details\",\"_embedded\":{\"allowedValues\":[{\"_type\":\"CustomOption\",\"id\":66,\"value\":\"Functional\",\"_links\":{\"self\":{\"href\":\"/api/v3/custom_options/66\",\"title\":\"Functional\"}}},{\"_type\":\"CustomOption\",\"id\":67,\"value\":\"Non functional\",\"_links\":{\"self\":{\"href\":\"/api/v3/custom_options/67\",\"title\":\"Non functional\"}}}]},\"_links\":{\"allowedValues\":[{\"href\":\"/api/v3/custom_options/66\",\"title\":\"Functional\"},{\"href\":\"/api/v3/custom_options/67\",\"title\":\"Non functional\"}]}}","Functional","Non functional"]
["updatedAt","Updated on","DateTime","{\"type\":\"DateTime\",\"name\":\"Updated on\",\"required\":true,\"hasDefault\":false,\"writable\":false,\"options\":{}}"]
["version","Version","Version","{\"type\":\"Version\",\"name\":\"Version\",\"required\":false,\"hasDefault\":false,\"writable\":false,\"attributeGroup\":\"Details\",\"_embedded\":{\"allowedValues\":[{\"_type\":\"Version\",\"id\":17,\"name\":\"Global Backlog\",\"description\":{\"format\":\"plain\",\"raw\":\"\",\"html\":\"\"},\"startDate\":\"2019-10-01\",\"endDate\":\"2019-10-31\",\"status\":\"open\",\"sharing\":\"hierarchy\",\"createdAt\":\"2019-04-08T04:11:30Z\",\"updatedAt\":\"2019-10-01T06:16:00Z\",\"_links\":{\"self\":{\"href\":\"/api/v3/versions/17\",\"title\":\"Global Backlog\"},\"schema\":{\"href\":\"/api/v3/versions/schema\"},\"definingProject\":{\"href\":\"/api/v3/projects/7\",\"title\":\"Risa\"},\"availableInProjects\":{\"href\":\"/api/v3/versions/17/projects\"}}},{\"_type\":\"Version\",\"id\":18,\"name\":\"Global Wishlist\",\"description\":{\"format\":\"plain\",\"raw\":\"\",\"html\":\"\"},\"startDate\":\"2019-11-01\",\"endDate\":\"2019-11-30\",\"status\":\"open\",\"sharing\":\"hierarchy\",\"createdAt\":\"2019-04-08T04:11:50Z\",\"updatedAt\":\"2019-10-01T06:15:14Z\",\"_links\":{\"self\":{\"href\":\"/api/v3/versions/18\",\"title\":\"Global Wishlist\"},\"schema\":{\"href\":\"/api/v3/versions/schema\"},\"definingProject\":{\"href\":\"/api/v3/projects/7\",\"title\":\"Risa\"},\"availableInProjects\":{\"href\":\"/api/v3/versions/18/projects\"}}},{\"_type\":\"Version\",\"id\":33,\"name\":\"Risa global backlog Service requests\",\"description\":{\"format\":\"plain\",\"raw\":\"\",\"html\":\"\"},\"startDate\":null,\"endDate\":null,\"status\":\"open\",\"sharing\":\"descendants\",\"createdAt\":\"2019-05-30T12:01:22Z\",\"updatedAt\":\"2019-05-30T12:01:22Z\",\"_links\":{\"self\":{\"href\":\"/api/v3/versions/33\",\"title\":\"Risa global backlog Service requests\"},\"schema\":{\"href\":\"/api/v3/versions/schema\"},\"definingProject\":{\"href\":\"/api/v3/projects/7\",\"title\":\"Risa\"},\"availableInProjects\":{\"href\":\"/api/v3/versions/33/projects\"}}},{\"_type\":\"Version\",\"id\":148,\"name\":\"Risa sprint week 2020-29\",\"description\":{\"format\":\"plain\",\"raw\":\"\",\"html\":\"\"},\"startDate\":\"2020-07-13\",\"endDate\":\"2020-07-19\",\"status\":\"open\",\"sharing\":\"descendants\",\"createdAt\":\"2020-07-08T11:40:05Z\",\"updatedAt\":\"2020-07-08T11:40:05Z\",\"_links\":{\"self\":{\"href\":\"/api/v3/versions/148\",\"title\":\"Risa sprint week 2020-29\"},\"schema\":{\"href\":\"/api/v3/versions/schema\"},\"definingProject\":{\"href\":\"/api/v3/projects/7\",\"title\":\"Risa\"},\"availableInProjects\":{\"href\":\"/api/v3/versions/148/projects\"}}},{\"_type\":\"Version\",\"id\":150,\"name\":\"Risa sprint week 2020-31\",\"description\":{\"format\":\"plain\",\"raw\":\"\",\"html\":\"\"},\"startDate\":\"2020-07-27\",\"endDate\":\"2020-08-02\",\"status\":\"open\",\"sharing\":\"descendants\",\"createdAt\":\"2020-07-19T17:36:10Z\",\"updatedAt\":\"2020-07-19T17:36:10Z\",\"_links\":{\"self\":{\"href\":\"/api/v3/versions/150\",\"title\":\"Risa sprint week 2020-31\"},\"schema\":{\"href\":\"/api/v3/versions/schema\"},\"definingProject\":{\"href\":\"/api/v3/projects/7\",\"title\":\"Risa\"},\"availableInProjects\":{\"href\":\"/api/v3/versions/150/projects\"}}},{\"_type\":\"Version\",\"id\":149,\"name\":\"Risa sprint week 2020-30\",\"description\":{\"format\":\"plain\",\"raw\":\"\",\"html\":\"\"},\"startDate\":\"2020-07-20\",\"endDate\":\"2020-07-26\",\"status\":\"open\",\"sharing\":\"descendants\",\"createdAt\":\"2020-07-08T11:40:48Z\",\"updatedAt\":\"2020-07-08T11:40:48Z\",\"_links\":{\"self\":{\"href\":\"/api/v3/versions/149\",\"title\":\"Risa sprint week 2020-30\"},\"schema\":{\"href\":\"/api/v3/versions/schema\"},\"definingProject\":{\"href\":\"/api/v3/projects/7\",\"title\":\"Risa\"},\"availableInProjects\":{\"href\":\"/api/v3/versions/149/projects\"}}}]},\"_links\":{}}","Global Backlog","Global Wishlist","Risa global backlog Service requests","Risa sprint week 2020-29","Risa sprint week 2020-31","Risa sprint week 2020-30"]

{"sheet":"Users","index":4,"n_rows":75,"n_cols":3,"rows_kept":75,"hidden":true}
["ID","Name","Email"]
[112,"External-AtacsProjects"]
[85,"Risa-CEO-Management"]
[105,"RISA-Cyber Security"]
[13,"RISA-GCINO-Enterprise arch."]
[65,"RISA-GCINO-Innovation"]
[30,"RISA-GCINO-Management"]
[12,"RISA-GCINO-Software solutions"]
[92,"Risa-GCIO Cluster coordination"]
[41,"RISA-GCIO-Infrastructure"]
[83,"Risa-GCIO-Management"]
[97,"Aimable Muderi"]
[67,"Alain Kamanzi"]
[106,"Alfred Ntaganda"]
[42,"Alphonse Zigira"]
[111,"Ange Muhimundu"]
[129,"Angelique Uwamahoro"]
[95,"Anicet Kayumba"]
[59,"Antoine Sebera"]
[48,"Aurore Gashumba"]
[31,"Bahati Tuyisabe"]
[71,"Belyse Umutoni"]
[68,"Ben Rwamucyo"]
[11,"Christelle Muteteri"]
[3,"Christophe NIYONSENGA"]
[248,"Default Read-only-user","read-only-user@risa.gov.rw"]
[72,"Diana Gahima"]
[69,"Didas Turatsinze"]
[50,"Donata BUTERE"]
[19,"Donatien Uhoraningoga"]
[91,"Edson Mugabo"]
[5,"Elisabeth Ujeneza"]
[96,"Emile Musonera"]
[18,"Etienne Birara"]
[93,"Gerard Muziganyi"]
[28,"Gervais Ngirabari"]
[179,"Gisele Izera"]
[60,"Gloria Ingabire"]
[29,"Grace Iraguha"]
[20,"Ignace sinzi"]
[75,"Innocent Asiimwe"]
[110,"Innocent Kwizera"]
[21,"Innocent Twagirimana"]
[61,"Jackline Muteteri"]
[203,"Jean de Dieu Habimana"]
[113,"Jean-Jacques DUSHIMIYIMANA"]
[84,"Josephine Nyiranzeyimana"]
[206,"Josue Kamanzi"]
[79,"Jules Rukundo"]
[70,"Julien Endelea Rujanju"]
[8,"Leonidas Twiringiyimana"]
[35,"Louis de Montfort NDUWAYEZU","louisdemontfort.nduwayezu@risa.gov.rw"]
[14,"Lucie Uwizeye"]
[33,"Marcellin Nyirishyaka"]
[16,"Marlene Uwingabire"]
[199,"Martine Habimana"]
[49,"Maryse Gwiza"]
[82,"Meable Abaabo"]
[141,"Moses Gasana"]
[62,"Oliver Mutesi"]
[76,"Olivier Ingabire"]
[39,"Pachat Pacifique Hategekimana"]
[6,"Pierre Celestin Nizeyimana"]
[66,"Rene Kabalisa"]
[98,"Richard Muragijimana"]
[7,"Rutsinga Arsene"]
[64,"Said Ngoga"]
[15,"Solange Kalema"]
[9,"Sylvere Mugumya"]
[63,"Sylvia Nzaramba"]
[94,"Sylvie Nsanga"]
[51,"Test Permission level"]
[10,"Thierry Ngabo"]
[4,"Thomas Wiemann"]
[36,"Uwingeneye Providence"]

{"sheet":"Types","index":5,"n_rows":14,"n_cols":2,"rows_kept":14,"hidden":true}
["ID","Name"]
[1,"Task"]
[4,"Feature"]
[5,"Epic"]
[6,"User story"]
[7,"Bug"]
[8,"Resource assignment"]
[13,"Test case"]
[15,"Service Request"]
[16,"Architecture Feature"]
[20,"business service steps"]
[21,"business service"]
[22,"business unit"]
[25,"Requirement"]

{"sheet":"Default","index":6,"n_rows":5,"n_cols":2,"rows_kept":5,"hidden":true}
["URL","https://projectmanagement.risa.rw/"]
["Proxy",false]
["APIKey","71eee4a00f822b21f98d6c352e188a585ed6f68de3544d15d288dc40bb765ddb"]
["Project","risa-template-scrum"]
["QueryID","128"]